2CCN - Level 2 Cost Centre Name,,9CCN - Level 9 Cost Centre Name,9CCC - Level 9 Cost Centre Code,9AN - Level 9 Account Name,9AC - Level 9 Account Code,Transaction Description,Date Paid,Transaction Reference,Analysed Amount,2AC - Level 2 Account Codes,Supplier Name,Supplier Code
Gloucester City Council,23UE,Cemeteries,HC300,Operational Materials,5070,Various Items,02/11/2015,409990,24.95,NET,Spaldings,48759Y
Gloucester City Council,23UE,Cemeteries,HC300,Routine R And M - Vehicles,4011,Repairs to Excavator,02/11/2015,409991,70,NET,Jay Bee Plant Sales Ltd,11156L
Gloucester City Council,23UE,Cemeteries,HC300,Routine R And M - Vehicles,4011,Various Items,02/11/2015,409989,260.45,NET,Spaldings,48759Y
Gloucester City Council,23UE,Corporate Reporting /Financing,RC504,Audit Fees,5383,2015/16 Audit Fee,02/11/2015,409988,17993.25,NET,Kpmg,06498X
Gloucester City Council,23UE,Economic Development,FP300,Business Grant,7116,Broadband,02/11/2015,409987,2245,NET,Edge Networks (Uk) Ltd,15839J
Gloucester City Council,23UE,Environmental Planning,LM340,Fees For Services Received,5350,Manor Farm sessions 15/16 Oct15,02/11/2015,409920,450,NET,Tcv T/A The Conservation Volunteers,55897V
Gloucester City Council,23UE,REDACTED,REDACTED,REDACTED,REDACTED,REDACTED,02/11/2015,REDACTED,320,NET,REDACTED,REDACTED
Gloucester City Council,23UE,Homelessness,CH120,Rent In Advance,5516,ria & deposit,02/11/2015,410022,489.44,NET,REDACTED,REDACTED
Gloucester City Council,23UE,REDACTED,REDACTED,REDACTED,REDACTED,REDACTED,02/11/2015,REDACTED,272.72,NET,REDACTED,REDACTED
Gloucester City Council,23UE,Homelessness Prevention,CH122,Fees For Services Received,5350,ria & deposit,02/11/2015,410022,530,NET,REDACTED,REDACTED
Gloucester City Council,23UE,REDACTED,REDACTED,REDACTED,REDACTED,REDACTED,02/11/2015,REDACTED,300,NET,REDACTED,REDACTED
Gloucester City Council,23UE,Nms Contract,HI102,Additional Non-Tender Items,6973,purple sacks,02/11/2015,409723,953,NET,Polystar Plastics Ltd,01120C
Gloucester City Council,23UE,The Arbor,HC501,Catering Provisions -Food,5110,food,02/11/2015,409562,167.25,NET,Janes Pantry,24500W
Gloucester City Council,23UE,The Arbor,HC501,Catering Provisions -Food,5110,food,02/11/2015,409926,167.6,NET,Janes Pantry,24500W
Gloucester City Council,23UE,The Arbor,HC501,Operational Equipment <5000,5012,Dishwasher,02/11/2015,409914,1901,NET,Space Catering Equipment Ltd,42828RV
Gloucester City Council,23UE,Tic Trading,LT110,Materials For Sale,5080,Various Items,02/11/2015,409993,495.6,NET,Norfolk China Ltd,12863S
Gloucester City Council,23UE,Blackfriars,LA609,Contract Cleaning,3620,Cover Cleaning Oct 2015,03/11/2015,409983,455,NET,Into Cleaning,14609P
Gloucester City Council,23UE,Cemeteries,HC300,Routine R And M - Vehicles,4011,Fuel Leak,03/11/2015,410012,47,NET,Garden Machinery Gloucester,55641K
Gloucester City Council,23UE,Cemeteries,HC300,Routine R And M - Vehicles,4011,Strimmer Heads,03/11/2015,410011,401.88,NET,Garden Machinery Gloucester,55641K
Gloucester City Council,23UE,Cemeteries,HC300,Tyres,4014,Various Items,03/11/2015,410009,42.1,NET,A T S Euromaster Ltd,01860B
Gloucester City Council,23UE,Cemeteries,HC300,Tyres,4014,Various Items,03/11/2015,410010,242.9,NET,A T S Euromaster Ltd,01860B
Gloucester City Council,23UE,Cemeteries,HC300,Vocational Training,2970,ICCM CTTS qualification,03/11/2015,409050,475,NET,Institute Of Cemetery & Crematorium M'Ment,01116T
Gloucester City Council,23UE,Contact Centre,RB300,Other Minor Supplies Services,5590,Monthly Fee November 2015,03/11/2015,410002,237.57,NET,Office Response,09439K
Gloucester City Council,23UE,Contact Centre,RB300,Postages,5400,Post 09/10 - 22/10 2015,03/11/2015,410020,1146.41,NET,Royal Mail S.Wales & South West,35830S
Gloucester City Council,23UE,Contact Centre,RB300,Postages,5400,Response Plus Service,03/11/2015,410019,737.26,NET,Royal Mail S.Wales & South West,35830S
Gloucester City Council,23UE,Contact Centre,RB300,Stationery,5302,Paper,03/11/2015,409995,451,NET,Premier Paper Group Ltd,09166Y
Gloucester City Council,23UE,Development Management,PT200,Advertising And Publicity,5702,ADVERT 15/10/15,03/11/2015,409485,262.94,NET,Local World Ltd,08556P
Gloucester City Council,23UE,Development Management,PT200,Advertising And Publicity,5702,Advertisement 22/10/2015,03/11/2015,409999,146.08,NET,Local World Ltd,08556P
Gloucester City Council,23UE,Docks Complex - Services,RB100,Service Charges,3020,Lease Rental Nov 15 - Feb 16,03/11/2015,409286,422.24,NET,Wessex Products (Leasing) Ltd,03684C
Gloucester City Council,23UE,Docks Complex - Services,RB100,Service Charges,3020,trade waste,03/11/2015,407784,309.15,NET,Enterprise (Aol) Ltd,06695G
Gloucester City Council,23UE,Equalities,EH102,Other Minor Supplies Services,5590,Scaffold Hire,03/11/2015,409997,150,NET,Abc Hire & Sales Ltd,16139M
Gloucester City Council,23UE,Grants To Voluntary Sector,FG100,Members Allocation Fund,7100F,Cheerleading Tryouts,03/11/2015,410001,250,NET,Cheer Supreme Allstars,16155P
Gloucester City Council,23UE,Grants To Voluntary Sector,FG100,Members Allocation Fund,7100F,Sycamore Removal,03/11/2015,410000,450,NET,Rob Cockburn Tree And Hedge Maintenance,16152W
Gloucester City Council,23UE,REDACTED,REDACTED,REDACTED,REDACTED,REDACTED,03/11/2015,REDACTED,100,NET,REDACTED,REDACTED
Gloucester City Council,23UE,REDACTED,REDACTED,REDACTED,REDACTED,REDACTED,03/11/2015,REDACTED,100,NET,REDACTED,REDACTED
Gloucester City Council,23UE,REDACTED,REDACTED,REDACTED,REDACTED,REDACTED,03/11/2015,REDACTED,150,NET,REDACTED,REDACTED
Gloucester City Council,23UE,REDACTED,REDACTED,REDACTED,REDACTED,REDACTED,03/11/2015,REDACTED,100,NET,REDACTED,REDACTED
Gloucester City Council,23UE,REDACTED,REDACTED,REDACTED,REDACTED,REDACTED,03/11/2015,REDACTED,111.71,NET,REDACTED,REDACTED
Gloucester City Council,23UE,REDACTED,REDACTED,REDACTED,REDACTED,REDACTED,03/11/2015,REDACTED,120,NET,REDACTED,REDACTED
Gloucester City Council,23UE,REDACTED,REDACTED,REDACTED,REDACTED,REDACTED,03/11/2015,REDACTED,155.63,NET,REDACTED,REDACTED
Gloucester City Council,23UE,REDACTED,REDACTED,REDACTED,REDACTED,REDACTED,03/11/2015,REDACTED,150,NET,REDACTED,REDACTED
Gloucester City Council,23UE,REDACTED,REDACTED,REDACTED,REDACTED,REDACTED,03/11/2015,REDACTED,750,NET,REDACTED,REDACTED
Gloucester City Council,23UE,Homelessness Prevention,CH122,Basic Pay - Temporary Staff,2751,temporary staff w/e 25/10/15,03/11/2015,410074,795.5,NET,Greenacre Recruitment Ltd,15817V
Gloucester City Council,23UE,Investment Property,RB500,Asbestos Management Plan,3003,technical services,03/11/2015,409919,395.95,NET,Mss Group,14469F
Gloucester City Council,23UE,Kings Quarter,RY146,Contract Payments,20,replace Kings Sq bollard,03/11/2015,410068,300,CAP,Mpl Wrought Iron Llp,03907P
Gloucester City Council,23UE,Members Support,RC300,Members Training,5535,Heritage in 21st Century 6/11/15,03/11/2015,410075,25,NET,South West Councils,56523H
Gloucester City Council,23UE,Members Support,RC300,Members Training,5535,Heritage in the 21st Century 6/11/15,03/11/2015,410076,25,NET,South West Councils,56523H
Gloucester City Council,23UE,Retail Market - Landlord,HM300,Cleaning / Domestic Equipment,5011,TOWEL HIRE NOV15,03/11/2015,409629,18.93,NET,Initial Washroom Solutions,06143R
Gloucester City Council,23UE,Rugby World Cup,LT450,Fees For Services Received,5350,Fanzone hosting,03/11/2015,410008,15000,NET,Gloucester Rugby Football Club,49396D
Gloucester City Council,23UE,Tic Rovercard Sales,LT101,Materials For Sale,5080,Sep-15,03/11/2015,409994,5218,NET,Stagecoach Services Ltd,56554W
Gloucester City Council,23UE,Tic Rovercard Sales,LT101,Sale Of Goods And Services,9230,Sep-15,03/11/2015,409994,-434.83,NET,Stagecoach Services Ltd,56554W
Gloucester City Council,23UE,Tic Theatre Ticket Sales,LT107,Materials For Sale,5080,Tickets for History Festival,03/11/2015,409992,4527,NET,Marketing Gloucester Ltd,08925E
Gloucester City Council,23UE,Blackfriars Catering,LA220,Catering Provisions -Liquor,5111,Gloucester Gold,04/11/2015,408731,70,NET,Gloucester Brewery,13373F
Gloucester City Council,23UE,Blackfriars Catering,LA220,Catering Provisions -Liquor,5111,Gloucester Gold,04/11/2015,410112,19,NET,Gloucester Brewery,13373F
Gloucester City Council,23UE,Blackfriars Catering,LA220,Catering Provisions -Liquor,5111,Gloucester Gold,04/11/2015,410113,40,NET,Gloucester Brewery,13373F
Gloucester City Council,23UE,Cemeteries,HC300,Operational Materials,5070,16/10/15 Lamps,04/11/2015,410016,43.92,NET,Mitchells (Gloucester) Ltd,30160U
Gloucester City Council,23UE,Cemeteries,HC300,Operational Materials,5070,Spectacles,04/11/2015,409998,59.8,NET,Safpro Industrial Supply Co,39190W
Gloucester City Council,23UE,Cemeteries,HC300,Routine R And M - Vehicles,4011,V-Belt,04/11/2015,410013,116.41,NET,Frank Sutton Ltd - Agric'L Engineer,42875D
Gloucester City Council,23UE,City Museum And Art Gallery,LM200,Publications For Sale,5064,goods for resale,04/11/2015,409719,153,NET,Intelex Group Uk Ltd,14369L
Gloucester City Council,23UE,City Museum Catering,LM202,Catering Provisions -Food,5110,coffee,04/11/2015,407977,92.15,NET,James Gourmet Coffee Co.,55049A
Gloucester City Council,23UE,Contact Centre,RB300,Security Services Fees,5351,MEMBERSHIP,04/11/2015,410123,365,NET,Gloucester City Safe,14709J
Gloucester City Council,23UE,Crematorium,HC200,Repair/Maint Of Monuments,3004,sanctum 2000 tablet,04/11/2015,409965,261,NET,The Columbaria Company,55078T
Gloucester City Council,23UE,Folk Museum,LM210,Publications For Sale,5064,goods for resale,04/11/2015,409719,153,NET,Intelex Group Uk Ltd,14369L
Gloucester City Council,23UE,Guildhall Bar And Caf�,LA210,Catering Provisions -Food,5110,FOOD,04/11/2015,410115,26.8,NET,Janes Pantry,24500W
Gloucester City Council,23UE,Guildhall Bar And Caf�,LA210,Catering Provisions -Liquor,5111,Product Rental,04/11/2015,409986,56.59,NET,Boc Ltd,59172L
Gloucester City Council,23UE,REDACTED,REDACTED,REDACTED,REDACTED,REDACTED,04/11/2015,REDACTED,1000,NET,REDACTED,REDACTED
Gloucester City Council,23UE,REDACTED,REDACTED,REDACTED,REDACTED,REDACTED,04/11/2015,REDACTED,2887.48,NET,REDACTED,REDACTED
Gloucester City Council,23UE,REDACTED,REDACTED,REDACTED,REDACTED,REDACTED,04/11/2015,REDACTED,120,NET,REDACTED,REDACTED
Gloucester City Council,23UE,REDACTED,REDACTED,REDACTED,REDACTED,REDACTED,04/11/2015,REDACTED,120,NET,REDACTED,REDACTED
Gloucester City Council,23UE,REDACTED,REDACTED,REDACTED,REDACTED,REDACTED,04/11/2015,REDACTED,240,NET,REDACTED,REDACTED
Gloucester City Council,23UE,REDACTED,REDACTED,REDACTED,REDACTED,REDACTED,04/11/2015,REDACTED,300,NET,REDACTED,REDACTED
Gloucester City Council,23UE,REDACTED,REDACTED,REDACTED,REDACTED,REDACTED,04/11/2015,REDACTED,624,NET,REDACTED,REDACTED
Gloucester City Council,23UE,Registration Of Electors,RS400,Fees For Services Received,5350,large ballot boxes,04/11/2015,410067,1800,NET,Central Tools And Pressings Ltd,15471K
Gloucester City Council,23UE,Tic Theatre Ticket Sales,LT107,Materials For Sale,5080,TKT SALES OCT 2015,04/11/2015,410143,116,NET,Kings Theatre,54213X
Gloucester City Council,23UE,Tic Theatre Ticket Sales,LT107,Sale Of Goods And Services,9230,TKT SALES OCT 2015,04/11/2015,410143,-9.67,NET,Kings Theatre,54213X
Gloucester City Council,23UE,Business Transformation & Tech,RT700,Other Minor Supplies Services,5590,4Gb encrypted USB,05/11/2015,410164,85,NET,Qual Technology,56512N
Gloucester City Council,23UE,Cemeteries,HC300,Maint Of Grounds - General,3030,Supply of plants SEPT/OCT15,05/11/2015,410073,9.2,NET,Genus Plant Sourcing,14143S
Gloucester City Council,23UE,Cemeteries,HC300,"Seeds, Trees, Plants, Shrubs",3028,Supply of plants SEPT/OCT15,05/11/2015,410073,37.7,NET,Genus Plant Sourcing,14143S
Gloucester City Council,23UE,City Museum And Art Gallery,LM200,Printing,5300,LEAFLETS,05/11/2015,409442,283,NET,Paddock Print,03014H
Gloucester City Council,23UE,City Museum And Art Gallery,LM200,Publications For Sale,5064,goods for resale,05/11/2015,409000,549.3,NET,Ashwood & Company,51123D
Gloucester City Council,23UE,Countryside Unit,LP201,Routine R And M - Vehicles,4011,spare parts,05/11/2015,410163,277.44,NET,Simon Richard Ltd,12862U
Gloucester City Council,23UE,Crematorium,HC200,Bonus/Prp-Building Maint Staff,1302,Supply of plants SEPT/OCT15,05/11/2015,410073,28.5,NET,Genus Plant Sourcing,14143S
Gloucester City Council,23UE,Crematorium,HC200,"Seeds, Trees, Plants, Shrubs",3028,Supply of plants SEPT/OCT15,05/11/2015,410073,66.2,NET,Genus Plant Sourcing,14143S
Gloucester City Council,23UE,Docks Complex - Castlemeads Cp,RB210,Maint Of Grounds - General,3030,Repairs to Castlemead Car Park,05/11/2015,409984,847.12,NET,J M Grail (General Engineering) Ltd,03204A
Gloucester City Council,23UE,Folk Museum,LM210,Printing,5300,LEAFLETS,05/11/2015,409442,283,NET,Paddock Print,03014H
Gloucester City Council,23UE,Investment Property,RB500,General Repair/Maint Buildings,3000,THE ARBOR,05/11/2015,409435,54,NET,Axiom Building Services,14908A
Gloucester City Council,23UE,Investment Property,RB500,Repair/Maint Of Fixed Plant,3006,THE ARBOR,05/11/2015,409435,483.46,NET,Axiom Building Services,14908A
Gloucester City Council,23UE,Allotments,HI104,Fees For Services Received,5350,annual support for Colony Enterprise,06/11/2015,410278,445,NET,Mcpc Systems (Uk) Ltd,14043X
Gloucester City Council,23UE,Allotments,HI104,Fees For Services Received,5350,OCT15 goods,06/11/2015,410200,26.66,NET,Countrywide Farmers,55687J
Gloucester City Council,23UE,Blackfriars Catering,LA220,Catering Provisions -Liquor,5111,drinks,06/11/2015,410219,292.5,NET,Cellar Supplies Cheltenham Ltd,01563L
Gloucester City Council,23UE,Business Transformation & Tech,RT700,Computer Software <5000,5425,NETCONSENT,06/11/2015,410114,4590,NET,Cogo Agency Ltd,13408M
Gloucester City Council,23UE,Business Transformation & Tech,RT700,Photocopying,5320,PHOTOCOPYING,06/11/2015,409040,35666.19,NET,Danwood Group Limited,09555G
Gloucester City Council,23UE,Cctv Revenue Budget,FP501,Overtime -Building Maint Staff,1303,SEP-DEC15 CCTV line rental,06/11/2015,410251,11748.44,NET,Bt Redcare,04692U
Gloucester City Council,23UE,Cemeteries,HC300,Operational Materials,5070,WEBBING,06/11/2015,410130,95.05,NET,Teleshore (Uk) Ltd,56819G
Gloucester City Council,23UE,Cemeteries,HC300,Repair/Maint Of Monuments,3004,Register of Cremations,06/11/2015,410015,520,NET,Shaw & Sons Ltd,40310F
Gloucester City Council,23UE,City Museum And Art Gallery,LM200,Exhibits And Collections,5038,Robot hire,06/11/2015,410172,1600,NET,Ideas,16137S
Gloucester City Council,23UE,Civica Admin Charges,RT105,Fees For Services Received,5350,CHD subscription advance,06/11/2015,410249,4,NET,Companies House,58954E
Gloucester City Council,23UE,Civica It Contract,RT270,Contracted Services,6970,IT DEC 2015,06/11/2015,410129,47916.67,NET,Civica Uk Ltd,10841X
Gloucester City Council,23UE,Contact Centre,RB300,Basic Pay - Temporary Staff,2751,temporary staff w/e 25/10/15,06/11/2015,409911,720,NET,Morgan Hunt Uk Ltd,04451S
Gloucester City Council,23UE,Council Streetcare Team,HI101,General Repair/Maint Buildings,3000,paint,06/11/2015,410207,71.14,NET,Ppg Architectural Coatings Uk Limited,04709C
Gloucester City Council,23UE,Council Streetcare Team,HI101,Maint Of Grounds - General,3030,Plaques,06/11/2015,409996,758,NET,Streetmaster Products,00534D
Gloucester City Council,23UE,Council Streetcare Team,HI101,Operational Equipment <5000,5012,nitrile disposable gloves,06/11/2015,410165,22.8,NET,Safpro Industrial Supply Co,39190W
Gloucester City Council,23UE,Council Streetcare Team,HI101,Window Cleaning,3610,Clean External Windows,06/11/2015,409985,130,NET,Poles Apart Window Cleaning,11636R
Gloucester City Council,23UE,Countryside Unit,LP201,Clothing,5200,OCT15 goods,06/11/2015,410200,11.65,NET,Countrywide Farmers,55687J
Gloucester City Council,23UE,Countryside Unit,LP201,Livestock Foodstuff,5841,OCT15 goods,06/11/2015,410200,14,NET,Countrywide Farmers,55687J
Gloucester City Council,23UE,Countryside Unit,LP201,Operational Equipment <5000,5012,OCT15 goods,06/11/2015,410200,39.99,NET,Countrywide Farmers,55687J
Gloucester City Council,23UE,Crematorium,HC200,Fees For Services Received,5350,October 2015 Doctors fees,06/11/2015,410276,1098.4,NET,Dr D Martin,00890P
Gloucester City Council,23UE,Crematorium,HC200,Fees For Services Received,5350,October 2015 Doctors fees,06/11/2015,410277,1015.52,NET,Dr C M Stretton,00306P
Gloucester City Council,23UE,Crematorium,HC200,Fees For Services Received,5350,October 2015 doctors fees,06/11/2015,410275,640.88,NET,Dr R W Bell,01571P
Gloucester City Council,23UE,Crematorium,HC200,Maint Of Grounds - General,3030,SAND,06/11/2015,410137,591,NET,Allstone Sand & Gravel Aggregates Ltd,00940M
Gloucester City Council,23UE,Development Management,PT200,Consultants Fees,5349,PEEL CENTRE,06/11/2015,407676,1750,NET,Dpds Ltd,05404V
Gloucester City Council,23UE,REDACTED,REDACTED,REDACTED,REDACTED,REDACTED,06/11/2015,REDACTED,6980,CAP,REDACTED,REDACTED
Gloucester City Council,23UE,Economic Development,FP300,Business Grant,7116,broadband voucher,06/11/2015,410257,2950,NET,Idnet,16167G
Gloucester City Council,23UE,REDACTED,REDACTED,REDACTED,REDACTED,REDACTED,06/11/2015,REDACTED,0,NET,REDACTED,REDACTED
Gloucester City Council,23UE,REDACTED,REDACTED,REDACTED,REDACTED,REDACTED,06/11/2015,REDACTED,160,NET,REDACTED,REDACTED
Gloucester City Council,23UE,General Drainage Works,PY241,Contract Payments,20,Merlin Drive works,06/11/2015,409930,590,CAP,Rdb Safety Boat Ltd,13507J
Gloucester City Council,23UE,Gloucester Guildhall,LA100,Maintenance Of Equipment,5030,EARPLUGS,06/11/2015,410125,59,NET,Directa Uk Ltd,05387T
Gloucester City Council,23UE,Gloucester Guildhall,LA100,Maintenance Of Equipment,5030,MATS,06/11/2015,410124,89,NET,Directa Uk Ltd,05387T
Gloucester City Council,23UE,REDACTED,REDACTED,REDACTED,REDACTED,REDACTED,06/11/2015,REDACTED,410,NET,REDACTED,REDACTED
Gloucester City Council,23UE,Guildhall Bar And Caf�,LA210,Catering Provisions -Food,5110,coffee,06/11/2015,410224,168.29,NET,Ethical Addictions Ltd,11654N
Gloucester City Council,23UE,Guildhall Bar And Caf�,LA210,Catering Provisions -Food,5110,food,06/11/2015,410209,4.6,NET,Total Produce Gloucester,12645E
Gloucester City Council,23UE,Guildhall Bar And Caf�,LA210,Catering Provisions -Food,5110,food,06/11/2015,410210,4.6,NET,Total Produce Gloucester,12645E
Gloucester City Council,23UE,Guildhall Bar And Caf�,LA210,Catering Provisions -Food,5110,food,06/11/2015,410232,4.6,NET,Total Produce Gloucester,12645E
Gloucester City Council,23UE,Guildhall Bar And Caf�,LA210,Catering Provisions -Food,5110,food,06/11/2015,410233,4.6,NET,Total Produce Gloucester,12645E
Gloucester City Council,23UE,Guildhall Bar And Caf�,LA210,Catering Provisions -Food,5110,food,06/11/2015,410256,156.95,NET,Woodward Foodservice,10714F
Gloucester City Council,23UE,Guildhall Bar And Caf�,LA210,Catering Provisions -Food,5110,food,06/11/2015,410258,4.6,NET,Total Produce Gloucester,12645E
Gloucester City Council,23UE,Guildhall Bar And Caf�,LA210,Catering Provisions -Food,5110,icecream,06/11/2015,410231,72,NET,Winstones Ice Cream Ltd,56347D
Gloucester City Council,23UE,Guildhall Bar And Caf�,LA210,Catering Provisions -Liquor,5111,drinks,06/11/2015,410213,1384.15,NET,Cellar Supplies Cheltenham Ltd,01563L
Gloucester City Council,23UE,Guildhall Bar And Caf�,LA210,Catering Provisions -Liquor,5111,drinks,06/11/2015,410214,87.98,NET,Cellar Supplies Cheltenham Ltd,01563L
Gloucester City Council,23UE,Guildhall Bar And Caf�,LA210,Catering Provisions -Liquor,5111,drinks,06/11/2015,410215,647.24,NET,Cellar Supplies Cheltenham Ltd,01563L
Gloucester City Council,23UE,Guildhall Bar And Caf�,LA210,Catering Provisions -Liquor,5111,drinks,06/11/2015,410216,112.77,NET,Cellar Supplies Cheltenham Ltd,01563L
Gloucester City Council,23UE,Guildhall Bar And Caf�,LA210,Catering Provisions -Liquor,5111,drinks,06/11/2015,410220,57.98,NET,Cellar Supplies Cheltenham Ltd,01563L
Gloucester City Council,23UE,Guildhall Bar And Caf�,LA210,Catering Provisions -Liquor,5111,drinks,06/11/2015,410221,136,NET,Cellar Supplies Cheltenham Ltd,01563L
Gloucester City Council,23UE,Guildhall Bar And Caf�,LA210,Catering Provisions -Liquor,5111,drinks,06/11/2015,410222,1507.5,NET,Cellar Supplies Cheltenham Ltd,01563L
Gloucester City Council,23UE,Guildhall Bar And Caf�,LA210,Catering Provisions -Liquor,5111,Gloucester gold,06/11/2015,410227,114,NET,Gloucester Brewery,13373F
Gloucester City Council,23UE,Guildhall Bar And Caf�,LA210,Hire Of Equipment,5020,disposable glasses,06/11/2015,410225,355,NET,Gerry Dance Disposables Ltd,54579Y
Gloucester City Council,23UE,Guildhall Bar And Caf�,LA210,Hire Of Equipment,5020,disposable glasses,06/11/2015,410226,264.5,NET,Gerry Dance Disposables Ltd,54579Y
Gloucester City Council,23UE,REDACTED,REDACTED,REDACTED,REDACTED,REDACTED,06/11/2015,REDACTED,150,NET,REDACTED,REDACTED
Gloucester City Council,23UE,REDACTED,REDACTED,REDACTED,REDACTED,REDACTED,06/11/2015,REDACTED,100,NET,REDACTED,REDACTED
Gloucester City Council,23UE,REDACTED,REDACTED,REDACTED,REDACTED,REDACTED,06/11/2015,REDACTED,370,NET,REDACTED,REDACTED
Gloucester City Council,23UE,Housing Works In Default,HD500,Clearance And Cleansing Fees,5384,16 Weston Rd works,06/11/2015,410218,2199.64,NET,Davey's Building Maintenance,57010K
Gloucester City Council,23UE,Human Resources,EH100,Fees For Services Received,5350,OCT15 payroll charges,06/11/2015,410217,2659.96,NET,Gloucestershire County Council,18650D
Gloucester City Council,23UE,Kings Quarter Redevelopment,RB600,Fees For Services Received,5350,Market Parade searches,06/11/2015,410061,515.74,NET,Severn Trent Searches,06827A
Gloucester City Council,23UE,Legal Services,RS200,Contracted Services,6970,Legal costs OCT15,06/11/2015,410203,9623.76,NET,Tewkesbury Borough Council,43800C
Gloucester City Council,23UE,Meet & Greet,FP309,Advertising And Publicity,5702,OCT15 advert,06/11/2015,410229,325,NET,Yandell Publishing Ltd,14956N
Gloucester City Council,23UE,Meet & Greet,FP309,Advertising And Publicity,5702,NOV15 advert Coach Tours UK,06/11/2015,410212,300,NET,A T Graphics Ltd,14985F
Gloucester City Council,23UE,Nms Contract,HI102,Contracted Services,6970,NOV15 service fee,06/11/2015,410186,448639.01,NET,Enterprise (Aol) Ltd,06695G
Gloucester City Council,23UE,Printing,RP103,Printing,5300,PRINTING,06/11/2015,410136,1419.86,NET,Alpha Colour Printers Ltd,00945B
Gloucester City Council,23UE,Rugby World Cup,LT450,Fees For Services Received,5350,Fanzone first aid cover,06/11/2015,410174,6600,NET,First Aid And Trauma Training,15988P
Gloucester City Council,23UE,The Arbor,HC501,Catering Provisions -Food,5110,food,06/11/2015,410194,229.92,NET,Bidvest Foodservice (3663),55585U
Gloucester City Council,23UE,The Arbor,HC501,Catering Provisions -Food,5110,food,06/11/2015,410195,192.38,NET,Bidvest Foodservice (3663),55585U
Gloucester City Council,23UE,The Arbor,HC501,Catering Provisions -Food,5110,food,06/11/2015,410196,386.73,NET,Bidvest Foodservice (3663),55585U
Gloucester City Council,23UE,The Arbor,HC501,Catering Provisions -Food,5110,food,06/11/2015,410234,71.42,NET,Total Produce Gloucester,12645E
Gloucester City Council,23UE,The Arbor,HC501,Catering Provisions -Food,5110,food,06/11/2015,410235,48.36,NET,Total Produce Gloucester,12645E
Gloucester City Council,23UE,The Arbor,HC501,Catering Provisions -Food,5110,food,06/11/2015,410236,25.49,NET,Total Produce Gloucester,12645E
Gloucester City Council,23UE,The Arbor,HC501,Catering Provisions -Food,5110,food,06/11/2015,410237,22.11,NET,Total Produce Gloucester,12645E
Gloucester City Council,23UE,The Arbor,HC501,Catering Provisions -Food,5110,food,06/11/2015,410238,39.68,NET,Total Produce Gloucester,12645E
Gloucester City Council,23UE,The Arbor,HC501,Catering Provisions -Food,5110,food,06/11/2015,410239,32.14,NET,Total Produce Gloucester,12645E
Gloucester City Council,23UE,The Arbor,HC501,Catering Provisions -Food,5110,food,06/11/2015,410240,23.26,NET,Total Produce Gloucester,12645E
Gloucester City Council,23UE,The Arbor,HC501,Catering Provisions -Food,5110,food,06/11/2015,410241,24.7,NET,Total Produce Gloucester,12645E
Gloucester City Council,23UE,The Arbor,HC501,Catering Provisions -Food,5110,food,06/11/2015,410242,20.69,NET,Total Produce Gloucester,12645E
Gloucester City Council,23UE,The Arbor,HC501,Catering Provisions -Food,5110,food,06/11/2015,410243,63.58,NET,Total Produce Gloucester,12645E
Gloucester City Council,23UE,The Arbor,HC501,Catering Provisions -Food,5110,food,06/11/2015,410244,11.86,NET,Total Produce Gloucester,12645E
Gloucester City Council,23UE,The Arbor,HC501,Catering Provisions -Food,5110,food,06/11/2015,410245,16.14,NET,Total Produce Gloucester,12645E
Gloucester City Council,23UE,The Arbor,HC501,Catering Provisions -Food,5110,food,06/11/2015,410246,7.44,NET,Total Produce Gloucester,12645E
Gloucester City Council,23UE,The Arbor,HC501,Catering Provisions -Food,5110,food,06/11/2015,410247,31.37,NET,Total Produce Gloucester,12645E
Gloucester City Council,23UE,The Arbor,HC501,Catering Provisions -Food,5110,food,06/11/2015,410248,57.33,NET,Total Produce Gloucester,12645E
Gloucester City Council,23UE,The Arbor,HC501,Catering Provisions -Food,5110,food,06/11/2015,410250,471.2,NET,Bidvest Foodservice (3663),55585U
Gloucester City Council,23UE,The Arbor,HC501,Catering Provisions -Food,5110,food,06/11/2015,410259,62.65,NET,Total Produce Gloucester,12645E
Gloucester City Council,23UE,The Arbor,HC501,Catering Provisions -Food,5110,food,06/11/2015,410260,11.31,NET,Total Produce Gloucester,12645E
Gloucester City Council,23UE,The Arbor,HC501,Catering Provisions -Food,5110,food,06/11/2015,410261,29.88,NET,Total Produce Gloucester,12645E
Gloucester City Council,23UE,The Arbor,HC501,Catering Provisions -Food,5110,food,06/11/2015,410262,16.11,NET,Total Produce Gloucester,12645E
Gloucester City Council,23UE,The Arbor,HC501,Catering Provisions -Food,5110,food,06/11/2015,410263,187.56,NET,Bidvest Foodservice (3663),55585U
Gloucester City Council,23UE,The Arbor,HC501,Catering Provisions -Food,5110,food,06/11/2015,410264,149.77,NET,Bidvest Foodservice (3663),55585U
Gloucester City Council,23UE,The Arbor,HC501,Catering Provisions -Food,5110,food,06/11/2015,410265,101.67,NET,Bidvest Foodservice (3663),55585U
Gloucester City Council,23UE,The Arbor,HC501,Catering Provisions -Food,5110,food,06/11/2015,410266,201.44,NET,Bidvest Foodservice (3663),55585U
Gloucester City Council,23UE,The Arbor,HC501,Catering Provisions -Food,5110,food,06/11/2015,410267,220.44,NET,Bidvest Foodservice (3663),55585U
Gloucester City Council,23UE,The Arbor,HC501,Catering Provisions -Liquor,5111,drinks,06/11/2015,410223,141.93,NET,Cellar Supplies Cheltenham Ltd,01563L
Gloucester City Council,23UE,REDACTED,REDACTED,REDACTED,REDACTED,REDACTED,06/11/2015,REDACTED,59.4,NET,REDACTED,REDACTED
Gloucester City Council,23UE,REDACTED,REDACTED,REDACTED,REDACTED,REDACTED,06/11/2015,REDACTED,39.6,NET,REDACTED,REDACTED
Gloucester City Council,23UE,REDACTED,REDACTED,REDACTED,REDACTED,REDACTED,06/11/2015,REDACTED,66,NET,REDACTED,REDACTED
Gloucester City Council,23UE,The Arbor,HC501,Other Minor Supplies Services,5590,flowers,06/11/2015,410252,32.4,NET,Carols Florist,01274X
Gloucester City Council,23UE,The Arbor,HC501,Other Minor Supplies Services,5590,flowers,06/11/2015,410253,19.8,NET,Carols Florist,01274X
Gloucester City Council,23UE,The Arbor,HC501,Other Minor Supplies Services,5590,flowers,06/11/2015,410254,19.8,NET,Carols Florist,01274X
Gloucester City Council,23UE,The Arbor,HC501,Other Minor Supplies Services,5590,flowers,06/11/2015,410255,32.4,NET,Carols Florist,01274X
Gloucester City Council,23UE,The Arbor,HC501,Uniforms,5201,polo shirts,06/11/2015,410206,203,NET,Quality Embroidery & Printing,06518T
Gloucester City Council,23UE,Tic Theatre Ticket Sales,LT107,Materials For Sale,5080,festival of remembrance 2015 ticket sale,06/11/2015,410270,294,NET,Royal British Legion Glos City Branch,05043F
Gloucester City Council,23UE,Tic Theatre Ticket Sales,LT107,Materials For Sale,5080,Macbeth sales 30&31 OCT 15,06/11/2015,410271,698,NET,Tyger Productions,14645K
Gloucester City Council,23UE,Tic Theatre Ticket Sales,LT107,Materials For Sale,5080,ticket sales APR-NOV15,06/11/2015,410269,96,NET,Cattle Country Adventure Park,58734X
Gloucester City Council,23UE,Tic Theatre Ticket Sales,LT107,Other Minor Income,9900,Macbeth sales 30&31 OCT 15,06/11/2015,410271,-6.7,NET,Tyger Productions,14645K
Gloucester City Council,23UE,Tic Theatre Ticket Sales,LT107,Sale Of Goods And Services,9230,festival of remembrance 2015 ticket sale,06/11/2015,410270,-12.25,NET,Royal British Legion Glos City Branch,05043F
Gloucester City Council,23UE,Tic Theatre Ticket Sales,LT107,Sale Of Goods And Services,9230,Macbeth sales 30&31 OCT 15,06/11/2015,410271,-58.17,NET,Tyger Productions,14645K
Gloucester City Council,23UE,Tic Theatre Ticket Sales,LT107,Sale Of Goods And Services,9230,ticket sales APR-NOV15,06/11/2015,410269,-8,NET,Cattle Country Adventure Park,58734X
Gloucester City Council,23UE,Tic Trading,LT110,Materials For Sale,5080,cotton & jute bags,06/11/2015,410230,530,NET,Keepme Promotions Ltd,16163R
Gloucester City Council,23UE,Townscape Heritage Initiative,LY145,Contract Payments,20,St Mary De Crypt wall pase 2,06/11/2015,410279,5760,CAP,Bourne Masonry,15013X
Gloucester City Council,23UE,Cemeteries,HC300,Basic Pay - Temporary Staff,2751,Temporary staff w/e 25/10/15,09/11/2015,410180,469.2,NET,Premiere Employment Group Ltd,55468Z
Gloucester City Council,23UE,REDACTED,REDACTED,REDACTED,REDACTED,REDACTED,09/11/2015,REDACTED,1189,NET,REDACTED,REDACTED
Gloucester City Council,23UE,Cemeteries,HC300,Trade Refuse Tipping Fees,6297,SKIP,09/11/2015,410138,40,NET,Allstone Sand & Gravel Aggregates Ltd,00940M
Gloucester City Council,23UE,Cemeteries,HC300,Trade Refuse Tipping Fees,6297,SKIP,09/11/2015,410139,420,NET,Allstone Sand & Gravel Aggregates Ltd,00940M
Gloucester City Council,23UE,Cemeteries,HC300,Trade Refuse Tipping Fees,6297,WASTE,09/11/2015,410140,320,NET,Allstone Sand & Gravel Aggregates Ltd,00940M
Gloucester City Council,23UE,Cemeteries,HC300,Trade Refuse Tipping Fees,6297,WASTE,09/11/2015,410141,320,NET,Allstone Sand & Gravel Aggregates Ltd,00940M
Gloucester City Council,23UE,Christmas Lights,GY006,Contract Payments,20,7ft Noway spruce artificial tree sample,09/11/2015,409724,140.5,CAP,Blachere Illuminations Uk Ltd,15818T
Gloucester City Council,23UE,Contact Centre,RB300,Basic Pay - Temporary Staff,2751,temporary staff w/e 1/11/15,09/11/2015,410166,720,NET,Morgan Hunt Uk Ltd,04451S
Gloucester City Council,23UE,Contact Centre,RB300,Other Minor Supplies Services,5590,OCT15 response service,09/11/2015,410201,90.5,NET,Office Response,09439K
Gloucester City Council,23UE,Gloucester Guildhall,LA100,Maintenance Of Equipment,5030,scaff tag inspection NOV15,09/11/2015,410167,148,NET,Global Platforms Ltd,09794K
Gloucester City Council,23UE,REDACTED,REDACTED,REDACTED,REDACTED,REDACTED,09/11/2015,REDACTED,240,NET,REDACTED,REDACTED
Gloucester City Council,23UE,Investment Property,RB500,General Repair/Maint Buildings,3000,Guildhall stairlift repairs,09/11/2015,410208,103.12,NET,Pickerings Europe Ltd,58816U
Gloucester City Council,23UE,Investment Property,RB500,Repair/Maint Of Fixed Plant,3006,Arbor condense trap works,09/11/2015,410204,750.82,NET,Axiom Building Services,14908A
Gloucester City Council,23UE,Investment Property,RB500,Repair/Maint Of Fixed Plant,3006,City Museum call out 13/10/15,09/11/2015,410205,68,NET,Axiom Building Services,14908A
Gloucester City Council,23UE,Investment Property,RB500,Repair/Maint Of Fixed Plant,3006,GUILDHALL,09/11/2015,410116,89,NET,Axiom Building Services,14908A
Gloucester City Council,23UE,Investment Property,RB500,Repair/Maint Of Fixed Plant,3006,GUILDHALL,09/11/2015,410119,1100,NET,Axiom Building Services,14908A
Gloucester City Council,23UE,Investment Property,RB500,Repair/Maint Of Fixed Plant,3006,GUILDHALL,09/11/2015,410122,1101.83,NET,Axiom Building Services,14908A
Gloucester City Council,23UE,Investment Property,RB500,Repair/Maint Of Fixed Plant,3006,HKP,09/11/2015,410117,1420.39,NET,Axiom Building Services,14908A
Gloucester City Council,23UE,Investment Property,RB500,Repair/Maint Of Fixed Plant,3006,TIC,09/11/2015,410118,66.2,NET,Axiom Building Services,14908A
Gloucester City Council,23UE,Rugby World Cup,LT450,Fees For Services Received,5350,RWC Scotland ceremony,09/11/2015,410353,300,NET,Gloucester Cathedral,03781D
Gloucester City Council,23UE,Rugby World Cup,LT450,Fees For Services Received,5350,RWC ticket application,09/11/2015,410359,4088.33,NET,England Rugby 2015 Limited,16162T
Gloucester City Council,23UE,Rugby World Cup,LT450,Fees For Services Received,5350,Fanzone stewards,09/11/2015,410352,570,NET,Nsgl Ltd,15246Y
Gloucester City Council,23UE,Tic Trading,LT110,Materials For Sale,5080,GOODS FOR RESALE,09/11/2015,410343,417.5,NET,Say It With A Sweetie Ltd,16136U
Gloucester City Council,23UE,Asset Management,RS300,Maint Of Grounds - General,3030,King Edwards Avenue works,10/11/2015,410400,1255,NET,Ken Pink Plant Hire Ltd,56884V
Gloucester City Council,23UE,Cemeteries,HC300,Routine R And M - Vehicles,4011,chainsaw chain,10/11/2015,410408,16.2,NET,Garden Machinery Gloucester,55641K
Gloucester City Council,23UE,Cemeteries,HC300,Routine R And M - Vehicles,4011,chainsaw service & parts,10/11/2015,410406,190.05,NET,Garden Machinery Gloucester,55641K
Gloucester City Council,23UE,Cemeteries,HC300,Routine R And M - Vehicles,4011,new wipers,10/11/2015,410407,59,NET,Garden Machinery Gloucester,55641K
Gloucester City Council,23UE,Cemeteries,HC300,Routine R And M - Vehicles,4011,service charges,10/11/2015,410409,381.95,NET,Garden Machinery Gloucester,55641K
Gloucester City Council,23UE,Cemeteries,HC300,Tyres,4014,tyre sealant,10/11/2015,410393,8.4,NET,A T S Euromaster Ltd,01860B
Gloucester City Council,23UE,Client Revs & Bens Contract,RT240,Bailiffs Fees,5368,vat only invoice,10/11/2015,410355,0,NET,Bristow & Sutor,05450M
Gloucester City Council,23UE,Client Revs & Bens Contract,RT240,Bailiffs Fees,5368,vat only invoice,10/11/2015,410356,0,NET,Bristow & Sutor,05450M
Gloucester City Council,23UE,Client Revs & Bens Contract,RT240,Bailiffs Fees,5368,vat only invoice,10/11/2015,410357,0,NET,Bristow & Sutor,05450M
Gloucester City Council,23UE,Contact Centre,RB300,Stationery,5302,monitor riser,10/11/2015,410390,14.7,NET,Lyreco Uk Ltd,11746G
Gloucester City Council,23UE,Contact Centre,RB300,Stationery,5302,pens,10/11/2015,410389,3,NET,Lyreco Uk Ltd,11746G
Gloucester City Council,23UE,Council Streetcare Team,HI101,Maint Of Grounds - General,3030,King Edwards Avenue works,10/11/2015,410399,1255,NET,Ken Pink Plant Hire Ltd,56884V
Gloucester City Council,23UE,Countryside Unit,LP201,Maint Of Grounds - General,3030,monkey wire strainer,10/11/2015,410391,105,NET,Buxtons Ltd,05590U
Gloucester City Council,23UE,Crematorium,HC200,Repair/Maint Of Fixed Plant,3006,thermocouple,10/11/2015,410397,366.66,NET,Facultatieve Technologies Ltd,51210H
Gloucester City Council,23UE,Docks Complex - Castlemeads Cp,RB210,Contracted Services,6970,GC Fixed overhead,10/11/2015,410181,773.48,NET,Apcoa Parking (Uk) Ltd,09954M
Gloucester City Council,23UE,Docks Complex - Castlemeads Cp,RB210,Contracted Services,6970,GC P&D Head Cams,10/11/2015,410182,2098.69,NET,Apcoa Parking (Uk) Ltd,09954M
Gloucester City Council,23UE,Docks Complex - Castlemeads Cp,RB210,Contracted Services,6970,GC VARIABLE ENFORCEMENT,10/11/2015,410183,1366.08,NET,Apcoa Parking (Uk) Ltd,09954M
Gloucester City Council,23UE,Docks Complex - Services,RB100,Recycling,3631,docks recycling,10/11/2015,410171,181,NET,Printwaste Recycling,57114W
Gloucester City Council,23UE,Docks Complex - Services,RB100,Security Services Fees,5351,cash processing OCT15,10/11/2015,410380,3.53,NET,G4s Cash Solutions (Uk) Ltd,04290V
Gloucester City Council,23UE,Green Garden Waste,HI105,Basic Pay - Temporary Staff,2751,temporary staff w/e 30/10/15,10/11/2015,410392,1152.26,NET,One To One Recruitment,04752H
Gloucester City Council,23UE,Hackney Carriages,HL100,Fees For Services Received,5350,OCT15 DBS checks,10/11/2015,410385,572,NET,Disclosure And Barring Service,00119W
Gloucester City Council,23UE,Investment Property,RB500,General Repair/Maint Buildings,3000,Eastgate Market lift 3,10/11/2015,410402,75,NET,Pickerings Europe Ltd,58816U
Gloucester City Council,23UE,Investment Property,RB500,General Repair/Maint Buildings,3000,Herbert Warehouse public side,10/11/2015,410403,75,NET,Pickerings Europe Ltd,58816U
Gloucester City Council,23UE,National Express,LT105,Materials For Sale,5080,tickets sold on commission OCT15,10/11/2015,410345,13002.85,NET,National Express Ltd,31455K
Gloucester City Council,23UE,National Express,LT105,Sale Of Goods And Services,9230,tickets sold on commission OCT15,10/11/2015,410345,-1238.18,NET,National Express Ltd,31455K
Gloucester City Council,23UE,Off Street Car Parks,PP110,Contracted Services,6970,GC OTHER ITEMS,10/11/2015,410184,11976.29,NET,Apcoa Parking (Uk) Ltd,09954M
Gloucester City Council,23UE,Off Street Car Parks,PP110,Contracted Services,6970,GC VARIABLE ENFORCEMENT,10/11/2015,410183,2963.12,NET,Apcoa Parking (Uk) Ltd,09954M
Gloucester City Council,23UE,Off Street Car Parks,PP110,Contracted Services,6970,GC VEHICLES,10/11/2015,410185,454.26,NET,Apcoa Parking (Uk) Ltd,09954M
Gloucester City Council,23UE,Retail Market - Landlord,HM300,Advertising And Publicity,5702,ADVERT 16/10/15,10/11/2015,409490,210,NET,The Worlds Fair Ltd,49321M
Gloucester City Council,23UE,Retail Market - Landlord,HM300,Advertising And Publicity,5702,Advert in Market Trader 2/10/15,10/11/2015,408813,210,NET,The Worlds Fair Ltd,49321M
Gloucester City Council,23UE,Retail Market - Landlord,HM300,Advertising And Publicity,5702,advert in Market Trader 30/10/15,10/11/2015,410199,210,NET,The Worlds Fair Ltd,49321M
Gloucester City Council,23UE,Retail Market - Landlord,HM300,Operational Equipment <5000,5012,compactor rental,10/11/2015,410411,280.56,NET,System Rental Uk Ltd,03239E
Gloucester City Council,23UE,Rugby World Cup,LT450,Fees For Services Received,5350,Excavator hire,10/11/2015,410398,58,NET,Ken Pink Plant Hire Ltd,56884V
Gloucester City Council,23UE,REDACTED,REDACTED,REDACTED,REDACTED,REDACTED,10/11/2015,REDACTED,675,NET,REDACTED,REDACTED
Gloucester City Council,23UE,Shopmobility,PE200,Maintenance Of Equipment,5030,Shompobility membership NOV5-JAN16,10/11/2015,410228,91.25,NET,Gloucester City Safe,14709J
Gloucester City Council,23UE,Theatre Tokens,LT106,Materials For Sale,5080,tickets sold on commission,10/11/2015,410386,135,NET,Society Of London Theatre,05656Z
Gloucester City Council,23UE,Theatre Tokens,LT106,Sale Of Goods And Services,9230,tickets sold on commission,10/11/2015,410386,-6.75,NET,Society Of London Theatre,05656Z
Gloucester City Council,23UE,Treasury Management,VR110,Brokerage Fees,5951,BROKERS FEES OCTOBER 2015,10/11/2015,410379,2087.68,NET,Martin Brokers (Uk) Plc,51416J
Gloucester City Council,23UE,Vehicles,RS140,Routine R And M - Vehicles,4011,exhaust & brake light,10/11/2015,410405,89.07,NET,123 Car & Commercial,07651E
Gloucester City Council,23UE,Vehicles,RS140,Routine R And M - Vehicles,4011,work to clutch pedal,10/11/2015,410404,77.54,NET,123 Car & Commercial,07651E
Gloucester City Council,23UE,Aspire Admin Charges,LC105,Other Minor Income,9900,refund of funds received in error,11/11/2015,410162,15,NET,Aspire Sports & Cultural Trust,08135V
Gloucester City Council,23UE,Blackfriars,LA609,Fees For Services Received,5350,CATERING,11/11/2015,410443,1925.68,NET,Orchard Catering,15822C
Gloucester City Council,23UE,Council Streetcare Team,HI101,Maint Of Grounds - General,3030,Saintbridge allotment signs,11/11/2015,409936,100,NET,Severn Signs Ltd,49841D
Gloucester City Council,23UE,Council Streetcare Team,HI101,Maint Of Grounds - General,3030,Saintbridge pond signs,11/11/2015,409937,59,NET,Severn Signs Ltd,49841D
Gloucester City Council,23UE,Development Management,PT200,Advertising And Publicity,5702,ADVERT 05/11/15,11/11/2015,410447,175.3,NET,Local World Ltd,08556P
Gloucester City Council,23UE,Development Management,PT200,Basic Pay -Admin /Prof Staff,2601,temporary staff w/e 1/11/15,11/11/2015,410395,399.6,NET,The Oyster Partnership Limited,14900T
Gloucester City Council,23UE,Docks Complex - Catering Servs,RB110,Charges For Services,9300,inline water cartridge,11/11/2015,410173,119,NET,Hoffs (Uk) Ltd,15003A
Gloucester City Council,23UE,Flex Replacement,LY160,Contract Payments,20,ADVERT 04/11/15,11/11/2015,410446,87.65,CAP,Local World Ltd,08556P
Gloucester City Council,23UE,Folk Museum,LM210,Advertising And Publicity,5702,ADVERT 16/10/15,11/11/2015,410126,5,NET,Local World Ltd,08556P
Gloucester City Council,23UE,REDACTED,REDACTED,REDACTED,REDACTED,REDACTED,11/11/2015,REDACTED,1000,NET,REDACTED,REDACTED
Gloucester City Council,23UE,Guildhall Events,LA200,Fees For Services Received,5350,space nac 2015,11/11/2015,410438,75,NET,Cg1 Limited,16165L
Gloucester City Council,23UE,REDACTED,REDACTED,REDACTED,REDACTED,REDACTED,11/11/2015,REDACTED,360,NET,REDACTED,REDACTED
Gloucester City Council,23UE,Guildhall Events,LA200,Hire Of Equipment,5020,LOO HIRE,11/11/2015,406853,85,NET,Abbey Loos Limited,10787B
Gloucester City Council,23UE,Guildhall Events,LA200,Maintenance Of Equipment,5030,MATERIALS,11/11/2015,410445,250,NET,Proptarts Ltd,16171S
Gloucester City Council,23UE,Planning Policy,PT300,Basic Pay - Temporary Staff,2751,temporary staff w/e 25/10/15,11/11/2015,409964,2276.31,NET,The Oyster Partnership Limited,14900T
Gloucester City Council,23UE,Printing,RP103,Printing,5300,printing,11/11/2015,410396,1270,NET,Alpha Colour Printers Ltd,00945B
Gloucester City Council,23UE,Registration Of Electors,RS400,Postages,5400,ACCT 0870585031 OCT 2015,11/11/2015,410442,1218.83,NET,Royal Mail S.Wales & South West,35830S
Gloucester City Council,23UE,Registration Of Electors,RS400,Printing,5300,2nd reminder HEF form mailing,11/11/2015,410387,1841,NET,Alpha Response Print & Mail Ltd,03029U
Gloucester City Council,23UE,Registration Of Electors,RS400,Printing,5300,OCT15 IER mailings,11/11/2015,410388,772.9,NET,Alpha Response Print & Mail Ltd,03029U
Gloucester City Council,23UE,Retail Market - Landlord,HM300,Operational Equipment <5000,5012,2d lamps,11/11/2015,409254,61.1,NET,City Electrical Factors,09325C
Gloucester City Council,23UE,Ugly Structures,GY010,Contract Payments,20,Over Cladding Phase 1,11/11/2015,408893,475,CAP,Rowntree Consulting Ltd,49474J
Gloucester City Council,23UE,Utilities,PT502,Electricity Supply,3110,UTILITIES TO NOV 2015,11/11/2015,410435,740.72,NET,West Mercia Energy,11669Z
Gloucester City Council,23UE,Utilities,PT502,Gas Supply,3100,UTILITIES TO NOV 2015,11/11/2015,410435,22633.15,NET,West Mercia Energy,11669Z
Gloucester City Council,23UE,Vehicles,RS140,Fuel,4012,vehicle fuel,11/11/2015,410377,189.38,NET,Allstar Business Solutions Ltd (Arval),06594A
Gloucester City Council,23UE,Asset Management,RS300,Basic Pay - Temporary Staff,2751,consultancy services OCT15,12/11/2015,410513,5025,NET,Ardley Associates,09369F
Gloucester City Council,23UE,Blackfriars,LA609,Security Services Fees,5351,OCT15 Guildhall security,12/11/2015,410492,87.63,NET,Nsgl Ltd (Security Acct),12539E
Gloucester City Council,23UE,City Museum And Art Gallery,LM200,Maint Agreements - Fixed Plant,3011,maintenance NOV15-JAN16,12/11/2015,410526,46.31,NET,Secom Plc,51471A
Gloucester City Council,23UE,City Museum And Art Gallery,LM200,Maint Agreements - Fixed Plant,3011,redcare monitoring NOV15-JAN16,12/11/2015,410525,311.35,NET,Secom Plc,51471A
Gloucester City Council,23UE,City Museum And Art Gallery,LM200,Publications For Sale,5064,goods for resale,12/11/2015,410514,43.68,NET,Ashwood & Company,51123D
Gloucester City Council,23UE,City Museum Catering,LM202,Catering Provisions -Food,5110,food,12/11/2015,410478,96.88,NET,Woodward Foodservice,10714F
Gloucester City Council,23UE,City Museum Catering,LM202,Catering Provisions -Food,5110,food,12/11/2015,410480,97.23,NET,Woodward Foodservice,10714F
Gloucester City Council,23UE,City Museum Catering,LM202,Catering Provisions -Food,5110,food,12/11/2015,410499,122.02,NET,Woodward Foodservice,10714F
Gloucester City Council,23UE,City Museum Catering,LM202,Catering Provisions -Food,5110,food,12/11/2015,410500,105.65,NET,Woodward Foodservice,10714F
Gloucester City Council,23UE,City Museum Catering,LM202,Catering Provisions -Food,5110,food,12/11/2015,410501,4.6,NET,Total Produce Gloucester,12645E
Gloucester City Council,23UE,City Museum Catering,LM202,Catering Provisions -Food,5110,food,12/11/2015,410502,4.6,NET,Total Produce Gloucester,12645E
Gloucester City Council,23UE,City Museum Catering,LM202,Catering Provisions -Food,5110,food,12/11/2015,410503,6.9,NET,Total Produce Gloucester,12645E
Gloucester City Council,23UE,City Museum Catering,LM202,Catering Provisions -Food,5110,food,12/11/2015,410504,2.3,NET,Total Produce Gloucester,12645E
Gloucester City Council,23UE,City Museum Catering,LM202,Catering Provisions -Food,5110,food,12/11/2015,410505,4.6,NET,Total Produce Gloucester,12645E
Gloucester City Council,23UE,City Museum Catering,LM202,Catering Provisions -Food,5110,food,12/11/2015,410527,4.6,NET,Total Produce Gloucester,12645E
Gloucester City Council,23UE,City Museum Catering,LM202,Catering Provisions -Food,5110,food,12/11/2015,410528,2.3,NET,Total Produce Gloucester,12645E
Gloucester City Council,23UE,City Museum Catering,LM202,Catering Provisions -Food,5110,food,12/11/2015,410529,4.6,NET,Total Produce Gloucester,12645E
Gloucester City Council,23UE,City Museum Catering,LM202,Catering Provisions -Food,5110,food,12/11/2015,410530,6.9,NET,Total Produce Gloucester,12645E
Gloucester City Council,23UE,City Museum Catering,LM202,Catering Provisions -Food,5110,food,12/11/2015,410531,4.6,NET,Total Produce Gloucester,12645E
Gloucester City Council,23UE,City Museum Catering,LM202,Catering Provisions -Food,5110,food,12/11/2015,410532,6.9,NET,Total Produce Gloucester,12645E
Gloucester City Council,23UE,City Museum Catering,LM202,Catering Provisions -Food,5110,food,12/11/2015,410533,4.6,NET,Total Produce Gloucester,12645E
Gloucester City Council,23UE,City Museum Catering,LM202,Catering Provisions -Food,5110,food,12/11/2015,410534,4.6,NET,Total Produce Gloucester,12645E
Gloucester City Council,23UE,City Museum Catering,LM202,Catering Provisions -Food,5110,food,12/11/2015,410535,4.6,NET,Total Produce Gloucester,12645E
Gloucester City Council,23UE,Client Revs & Bens Contract,RT240,Bailiffs Fees,5368,fees paid direct & VAT due,12/11/2015,410490,149.03,NET,Bristow & Sutor,05450M
Gloucester City Council,23UE,Client Revs & Bens Contract,RT240,Bailiffs Fees,5368,VAT due on fees,12/11/2015,410489,0,NET,Bristow & Sutor,05450M
Gloucester City Council,23UE,Council Streetcare Team,HI101,Maint Of Grounds - General,3030,Saffron close works,12/11/2015,410507,1097.86,NET,Mr M G Horton T/A H&T Property Maintenance,09210X
Gloucester City Council,23UE,Countryside Unit,LP201,Routine R And M - Vehicles,4011,landrover service,12/11/2015,410515,642.37,NET,Cotswold Motoring Services,16149J
Gloucester City Council,23UE,Development Management,PT200,Charges For Services,9300,RE 15/01168/PREAPP REFUND,12/11/2015,410477,1100,NET,Mercure Ltd,16022L
Gloucester City Council,23UE,Guildhall Events,LA200,Hire Of Equipment,5020,AV kit hire JUN15,12/11/2015,410483,580,NET,Unique Sound Systems,59571S
Gloucester City Council,23UE,Guildhall Events,LA200,Security Services Fees,5351,OCT15 Guildhall security,12/11/2015,410492,835.5,NET,Nsgl Ltd (Security Acct),12539E
Gloucester City Council,23UE,Homelessness,CH120,Fees For Services Received,5350,medical report,12/11/2015,410508,20.5,NET,London Road Medical Practice,03814P
Gloucester City Council,23UE,Homelessness,CH120,Fees For Services Received,5350,medical reports,12/11/2015,410496,35,NET,Now Medical,03468L
Gloucester City Council,23UE,REDACTED,REDACTED,REDACTED,REDACTED,REDACTED,12/11/2015,REDACTED,784.56,NET,REDACTED,REDACTED
Gloucester City Council,23UE,REDACTED,REDACTED,REDACTED,REDACTED,REDACTED,12/11/2015,REDACTED,800,NET,REDACTED,REDACTED
Gloucester City Council,23UE,Investment Property,RB500,General Repair/Maint Buildings,3000,GUILDHALL,12/11/2015,408418,253.12,NET,Pickerings Europe Ltd,58816U
Gloucester City Council,23UE,Land Searches,RO300,Charges For Services,9300,Refund Search Fees,12/11/2015,410545,880,NET,Tm Property Searches Limited,16319H
Gloucester City Council,23UE,Parks Contract Management,LP100,Maint Of Grounds - General,3030,swing seat,12/11/2015,410510,381.7,NET,Sutcliffe Play (Southwest) Ltd,02238S
Gloucester City Council,23UE,Planning Policy,PT300,Fees For Services Received,5350,site surveys,12/11/2015,410517,2170,NET,Gloucestershire Wildlife Management,49628F
Gloucester City Council,23UE,Rehousing,CH111,Fees For Services Received,5350,medical reports,12/11/2015,410496,285,NET,Now Medical,03468L
Gloucester City Council,23UE,Blackfriars,LA609,Advertising And Publicity,5702,Guildhall pens,13/11/2015,410633,170.45,NET,4imprint Direct Ltd,59494J
Gloucester City Council,23UE,Business Transformation & Tech,RT700,Computer Hardware <5000,5420,PLX Encorepro PLX Vista,13/11/2015,410211,430.37,NET,Rocom,56066R
Gloucester City Council,23UE,Business Transformation & Tech,RT700,Computer Software <5000,5425,2015-2016 UPLIFT,13/11/2015,409486,796.68,NET,Northgate Public Services Uk Ltd,08982S
Gloucester City Council,23UE,Business Transformation & Tech,RT700,Computer Software <5000,5425,Contensis CMS support OCT15-SEP16,13/11/2015,410635,14382.51,NET,Zengenti Ltd,08467P
Gloucester City Council,23UE,Business Transformation & Tech,RT700,Computer Software Maintenance,5427,INFO@WORK,13/11/2015,407936,1351.18,NET,Northgate Public Services Uk Ltd,08982S
Gloucester City Council,23UE,Contact Centre,RB300,Basic Pay - Temporary Staff,2751,temporary staff w/e 8/11/15,13/11/2015,410481,720,NET,Morgan Hunt Uk Ltd,04451S
Gloucester City Council,23UE,Countryside Unit,LP201,Vet Fees,5842,vets fees OCT15,13/11/2015,410484,23.66,NET,Wood Veterinary Group,48892V
Gloucester City Council,23UE,Development Management,PT200,Advertising And Publicity,5702,ADVERT 29/10/15,13/11/2015,410128,175.3,NET,Local World Ltd,08556P
Gloucester City Council,23UE,Economic Development,FP300,Business Grant,7116,Eden Greenhouses broadband voucher,13/11/2015,410632,3000,NET,Cerberus Networks Ltd,16177D
Gloucester City Council,23UE,Financial Services,RT200,Vocational Training,2970,lga ACCOUNTING CONFERENCE 18/11/15,13/11/2015,410495,145,NET,Cipfa Business Limited,09260F
Gloucester City Council,23UE,Gloucester Guildhall,LA100,Maintenance Of Equipment,5030,parcan lamps CP61 CP62,13/11/2015,410482,375,NET,Unique Sound Systems,59571S
Gloucester City Council,23UE,Green Garden Waste,HI105,Basic Pay - Temporary Staff,2751,temporary staff W/e 5/11/15,13/11/2015,410631,836.45,NET,One To One Recruitment,04752H
Gloucester City Council,23UE,Group Mgr Cult Ser & Tourism,GR102,Consultants Fees,5349,Gloucester Cultural Strategy,13/11/2015,410516,12475,NET,Festivals And Events International Ltd,15992Z
Gloucester City Council,23UE,Guildhall Events,LA200,Advertising And Publicity,5702,Guildhall pens,13/11/2015,410633,237.95,NET,4imprint Direct Ltd,59494J
Gloucester City Council,23UE,REDACTED,REDACTED,REDACTED,REDACTED,REDACTED,13/11/2015,REDACTED,3364,NET,REDACTED,REDACTED
Gloucester City Council,23UE,Hackney Carriages,HL100,Fees For Services Received,5350,DVLA checks,13/11/2015,410506,79.75,NET,Intelligent Data Systems (Uk) Ltd,11067G
Gloucester City Council,23UE,Hackney Carriages,HL100,Fees For Services Received,5350,Sep-15,13/11/2015,408802,58,NET,Intelligent Data Systems (Uk) Ltd,11067G
Gloucester City Council,23UE,REDACTED,REDACTED,REDACTED,REDACTED,REDACTED,13/11/2015,REDACTED,76.52,NET,REDACTED,REDACTED
Gloucester City Council,23UE,Land Searches,RO300,Fees For Services Received,5350,land charges 2014/15 Q4,13/11/2015,410176,1620,NET,Gloucestershire County Council,18650D
Gloucester City Council,23UE,Land Searches,RO300,Fees For Services Received,5350,Land charges Jul-Sep15,13/11/2015,410178,7964.71,NET,Gloucestershire County Council,18650D
Gloucester City Council,23UE,Land Searches,RO300,Fees For Services Received,5350,land charges Q1 2015/16,13/11/2015,410175,1920,NET,Gloucestershire County Council,18650D
Gloucester City Council,23UE,Land Searches,RO300,Fees For Services Received,5350,land charges Q2 2015/16,13/11/2015,410177,2400,NET,Gloucestershire County Council,18650D
Gloucester City Council,23UE,Blackfriars,LA609,Advertising And Publicity,5702,ADVERT 07/11/15,16/11/2015,410448,280,NET,Local World Ltd,08556P
Gloucester City Council,23UE,City Museum Catering,LM202,Catering Provisions -Food,5110,food,16/11/2015,410479,134.54,NET,Woodward Foodservice,10714F
Gloucester City Council,23UE,Docks Complex - Services,RB100,Recycling,3631,Blackfriars recycling,16/11/2015,410169,26,NET,Printwaste Recycling,57114W
Gloucester City Council,23UE,Docks Complex - Services,RB100,Recycling,3631,Guildhall recycling,16/11/2015,410170,63.4,NET,Printwaste Recycling,57114W
Gloucester City Council,23UE,External Communications,RC431,Publications,5060,City Life production & delivery costs,16/11/2015,410494,12000,NET,Gloucestershire County Council,18650D
Gloucester City Council,23UE,REDACTED,REDACTED,REDACTED,REDACTED,REDACTED,16/11/2015,REDACTED,528,NET,REDACTED,REDACTED
Gloucester City Council,23UE,REDACTED,REDACTED,REDACTED,REDACTED,REDACTED,16/11/2015,REDACTED,-40,NET,REDACTED,REDACTED
Gloucester City Council,23UE,Homelessness,CH120,Board And Lodging,5515,various tenants,16/11/2015,410675,779.13,NET,Dorchester Guest House,12298D
Gloucester City Council,23UE,Homelessness,CH120,Board And Lodging,5515,various tenants,16/11/2015,410676,714.48,NET,Carbrey Housing Ltd,11098G
Gloucester City Council,23UE,Homelessness,CH120,Board And Lodging,5515,various tenants,16/11/2015,410678,1276.43,NET,James Legge Property (Ltd),07844R
Gloucester City Council,23UE,Homelessness,CH120,Board And Lodging,5515,various tenants,16/11/2015,410679,5661.36,NET,REDACTED,REDACTED
Gloucester City Council,23UE,REDACTED,REDACTED,REDACTED,REDACTED,REDACTED,16/11/2015,REDACTED,2257.2,NET,REDACTED,REDACTED
Gloucester City Council,23UE,Internal Health & Safety,EH110,Other Minor Supplies Services,5590,first aid kits,16/11/2015,410511,22.84,NET,Selles Medical Ltd,50592W
Gloucester City Council,23UE,Marketing Gloucester Charges,RC433,Printing,5300,ADVERT 30/10/15,16/11/2015,410127,116.2,NET,Local World Ltd,08556P
Gloucester City Council,23UE,Planning Policy,PT300,Basic Pay - Temporary Staff,2751,temporary staff w/e 8/11/15,16/11/2015,410637,2218.75,NET,The Oyster Partnership Limited,14900T
Gloucester City Council,23UE,Planning Policy,PT300,Fees For Services Received,5350,JCS telephone recharges,16/11/2015,409969,40000,NET,Cheltenham Borough Council,04176B
Gloucester City Council,23UE,Planning Policy,PT300,Fees For Services Received,5350,Playing Pitch Strategy - final fee,16/11/2015,410639,1800,NET,Knight Kavanagh & Page (Kkp),15044K
Gloucester City Council,23UE,Tourism Marketing,LT100,Other Minor Supplies Services,5590,TIC sanitary disposal,16/11/2015,410680,16.22,NET,Ocs Group Uk Limited T/A Cannon,06506A
Gloucester City Council,23UE,Vehicles,RS140,Fuel,4012,vehicle fuel,16/11/2015,410638,253.66,NET,Allstar Business Solutions Ltd (Arval),06594A
Gloucester City Council,23UE,Asset Management,RS300,Vocational Training,2970,Restrictive covenants seminar fee,17/11/2015,410719,48,NET,Davies And Partners,05275K
Gloucester City Council,23UE,REDACTED,REDACTED,REDACTED,REDACTED,REDACTED,17/11/2015,REDACTED,650,CAP,REDACTED,REDACTED
Gloucester City Council,23UE,Cemeteries,HC300,Routine R And M - Vehicles,4011,chainsaw service,17/11/2015,410560,79.6,NET,Garden Machinery Gloucester,55641K
Gloucester City Council,23UE,City Museum And Art Gallery,LM200,Overtime - Receptionists,1453,donation boxes,17/11/2015,410559,1565,NET,Donationboxes.Co.Uk Ltd,15798X
Gloucester City Council,23UE,City Museum Catering,LM202,Catering Provisions -Food,5110,Jul-15,17/11/2015,410588,22.84,NET,Woody'S Fruit & Veg,11798L
Gloucester City Council,23UE,City Museum Catering,LM202,Catering Provisions -Food,5110,Jun-15,17/11/2015,410587,35.7,NET,Woody'S Fruit & Veg,11798L
Gloucester City Council,23UE,Client Revs & Bens Contract,RT240,Bailiffs Fees,5368,Fees paid direct & VAT due on fees,17/11/2015,410673,2.28,NET,Bristow & Sutor,05450M
Gloucester City Council,23UE,Contact Centre,RB300,Printing,5300,Xerox 90GSM 914x50m plot,17/11/2015,410735,54.08,NET,Stanford Marsh Ltd,51139M
Gloucester City Council,23UE,Contact Centre,RB300,Stationery,5302,diaries,17/11/2015,410730,10.73,NET,Lyreco Uk Ltd,11746G
Gloucester City Council,23UE,Contact Centre,RB300,Stationery,5302,flipchart pads,17/11/2015,410731,7.49,NET,Lyreco Uk Ltd,11746G
Gloucester City Council,23UE,Contact Centre,RB300,Stationery,5302,stationery,17/11/2015,410729,24.28,NET,Lyreco Uk Ltd,11746G
Gloucester City Council,23UE,Contact Centre,RB300,Stationery,5302,stationery,17/11/2015,410732,94.48,NET,Lyreco Uk Ltd,11746G
Gloucester City Council,23UE,Contact Centre,RB300,Stationery,5302,Xerox 90GM 1067/50m plot,17/11/2015,410736,11.78,NET,Stanford Marsh Ltd,51139M
Gloucester City Council,23UE,Council Streetcare Team,HI101,Maint Of Grounds - General,3030,padlocks & keys,17/11/2015,410728,207.5,NET,London Tools Ltd,13538X
Gloucester City Council,23UE,Council Streetcare Team,HI101,Signs / Nameplates,3039,various streetname signs,17/11/2015,410706,153.36,NET,Enterprise (Aol) Ltd,06695G
Gloucester City Council,23UE,Economic Development,FP300,Business Grant,7116,Broadband connection voucher,17/11/2015,410722,3000,NET,Eurolink Connect Limited,15772S
Gloucester City Council,23UE,Employers Pension Contribs,ZR355,Pension Contribs Incl Backf,2901,LGPS discretionary payments OCT-NOV15,17/11/2015,410703,26702.86,NET,Gloucestershire County Council,10614L
Gloucester City Council,23UE,Gloucester Guildhall,LA100,Routine R And M - Vehicles,4011,vehicle MOT & service,17/11/2015,410717,62.23,NET,123 Car & Commercial,07651E
Gloucester City Council,23UE,Guildhall Cinema,LA202,Fees For Services Received,5350,film transport charge,17/11/2015,410376,219.59,NET,Nft Logistics Ltd,13505N
Gloucester City Council,23UE,REDACTED,REDACTED,REDACTED,REDACTED,REDACTED,17/11/2015,REDACTED,80,NET,REDACTED,REDACTED
Gloucester City Council,23UE,REDACTED,REDACTED,REDACTED,REDACTED,REDACTED,17/11/2015,REDACTED,50,NET,REDACTED,REDACTED
Gloucester City Council,23UE,REDACTED,REDACTED,REDACTED,REDACTED,REDACTED,17/11/2015,REDACTED,100,NET,REDACTED,REDACTED
Gloucester City Council,23UE,REDACTED,REDACTED,REDACTED,REDACTED,REDACTED,17/11/2015,REDACTED,80,NET,REDACTED,REDACTED
Gloucester City Council,23UE,REDACTED,REDACTED,REDACTED,REDACTED,REDACTED,17/11/2015,REDACTED,8.75,NET,REDACTED,REDACTED
Gloucester City Council,23UE,REDACTED,REDACTED,REDACTED,REDACTED,REDACTED,17/11/2015,REDACTED,53.67,NET,REDACTED,REDACTED
Gloucester City Council,23UE,REDACTED,REDACTED,REDACTED,REDACTED,REDACTED,17/11/2015,REDACTED,31.94,NET,REDACTED,REDACTED
Gloucester City Council,23UE,REDACTED,REDACTED,REDACTED,REDACTED,REDACTED,17/11/2015,REDACTED,3452,NET,REDACTED,REDACTED
Gloucester City Council,23UE,Guildhall Events,LA200,Fees For Services Received,5350,beer for Oktoberfest,17/11/2015,410714,80,NET,Corinium Ales Ltd,16180R
Gloucester City Council,23UE,Guildhall Events,LA200,Fees For Services Received,5350,beer for Oktoberfest,17/11/2015,410720,223,NET,The Beer Agent,16181N
Gloucester City Council,23UE,Guildhall Events,LA200,Fees For Services Received,5350,beer for Oktoberfest,17/11/2015,410725,75,NET,Hillside Brewery,16182L
Gloucester City Council,23UE,REDACTED,REDACTED,REDACTED,REDACTED,REDACTED,17/11/2015,REDACTED,960,NET,REDACTED,REDACTED
Gloucester City Council,23UE,REDACTED,REDACTED,REDACTED,REDACTED,REDACTED,17/11/2015,REDACTED,-144,NET,REDACTED,REDACTED
Gloucester City Council,23UE,Homelessness,CH120,Board And Lodging,5515,emergency housing,17/11/2015,410713,58,NET,Connolly And Callaghan Ltd,07565Y
Gloucester City Council,23UE,Homelessness,CH120,Removal And Storage Fees,5513,temporary storage,17/11/2015,410718,483.75,NET,Advanced Removals & Storage Ltd,57142R
Gloucester City Council,23UE,Homelessness Prevention,CH122,Basic Pay - Temporary Staff,2751,Temporary staff w/e 1/11/15,17/11/2015,410554,645,NET,Greenacre Recruitment Ltd,15817V
Gloucester City Council,23UE,Homelessness Prevention,CH122,Basic Pay - Temporary Staff,2751,temporary staff w/e 8/11/15,17/11/2015,410724,795.5,NET,Greenacre Recruitment Ltd,15817V
Gloucester City Council,23UE,Hous Market Partnership Grant,CY045,Other Capital Grants,89,Quedgeley affordable homes grant,17/11/2015,410550,102867,CAP,Bromford Group,13346J
Gloucester City Council,23UE,Investment Property,RB500,General Repair/Maint Buildings,3000,Engineer,17/11/2015,410579,412,NET,Cooltherm,06087Z
Gloucester City Council,23UE,Investment Property,RB500,General Repair/Maint Buildings,3000,Engineer - Geoclima Chiller,17/11/2015,410604,212,NET,Cooltherm,06087Z
Gloucester City Council,23UE,Investment Property,RB500,Lightning Conductor,3026,Lightning protection tests,17/11/2015,410723,815,NET,G & S Steeplejacks Ltd,14575F
Gloucester City Council,23UE,Investment Property,RB500,Repair/Maint Of Fixed Plant,3006,museum door repairs,17/11/2015,410555,115,NET,Pro Door Ltd,04760C
Gloucester City Council,23UE,Kings Quarter,RY146,Contract Payments,20,Kings Square paving - final payment,17/11/2015,410672,29477.88,CAP,Talus Construction Ltd,10401G
Gloucester City Council,23UE,Legal Services,RS200,Contracted Services,6970,One Legal fes Q2 2015/16,17/11/2015,410564,95541.11,NET,Tewkesbury Borough Council,43800C
Gloucester City Council,23UE,REDACTED,REDACTED,REDACTED,REDACTED,REDACTED,17/11/2015,REDACTED,21,NET,REDACTED,REDACTED
Gloucester City Council,23UE,Meet & Greet,FP309,Advertising And Publicity,5702,member fee OCT15-SEP16,17/11/2015,410568,295,NET,Coach Tourism Council,48015H
Gloucester City Council,23UE,Nms Contract,HI102,Contracted Services,6970,OCT15 pension recharge,17/11/2015,410741,10640.15,NET,Enterprise (Aol) Ltd,06695G
Gloucester City Council,23UE,Northwarehouse,RB150,Lift Maintenance,3051,Lift Inspection,17/11/2015,408565,689.62,NET,Schindler Ltd,06826C
Gloucester City Council,23UE,Parks Contract Management,LP100,Maint Of Grounds - General,3030,various streetname signs,17/11/2015,410706,103.36,NET,Enterprise (Aol) Ltd,06695G
Gloucester City Council,23UE,Pest Control,HD400,Fees For Services Received,5350,pigeon/gull control treatment,17/11/2015,410410,13338,NET,Mitie Pest Control Ltd,15737U
Gloucester City Council,23UE,Ranger Centre/Netheridge Wks,RY167,Contract Payments,20,topo survey,17/11/2015,410521,445,CAP,Monument Geomatics,11065F
Gloucester City Council,23UE,Rehousing,CH111,Fees For Services Received,5350,medical report,17/11/2015,410509,20.5,NET,Dr P Hodges And Partners,16169C
Gloucester City Council,23UE,Rugby World Cup,LT450,Fees For Services Received,5350,equipment hire for RWC Fanzone,17/11/2015,410548,36632.05,NET,Peak Hire Limited,07936J
Gloucester City Council,23UE,Rugby World Cup,LT450,Fees For Services Received,5350,RWC fanzone entertainment 10/10/15,17/11/2015,410710,350,NET,REDACTED,REDACTED
Gloucester City Council,23UE,Rugby World Cup,LT450,Fees For Services Received,5350,RWC Fanzone radio hire,17/11/2015,410721,1796.99,NET,Direct Communications Radio Services Ltd,16175H
Gloucester City Council,23UE,Rugby World Cup,LT450,Fees For Services Received,5350,RWC Fanzone work,17/11/2015,410726,2500,NET,Impressionone,16131E
Gloucester City Council,23UE,Rugby World Cup,LT450,Fees For Services Received,5350,RWC street entertainment,17/11/2015,410546,9200,NET,Marketing Gloucester Ltd,08925E
Gloucester City Council,23UE,REDACTED,REDACTED,REDACTED,REDACTED,REDACTED,17/11/2015,REDACTED,350,NET,REDACTED,REDACTED
Gloucester City Council,23UE,REDACTED,REDACTED,REDACTED,REDACTED,REDACTED,17/11/2015,REDACTED,13436.25,CAP,REDACTED,REDACTED
Gloucester City Council,23UE,Safer Stronger Communities,FP841,Other Minor Supplies Services,5590,Crime Prevention calendars,17/11/2015,410709,762,NET,Icon.Net,52505Z
Gloucester City Council,23UE,Safer Stronger Communities,FP841,Other Minor Supplies Services,5590,Hi Vis slap wristbands,17/11/2015,410727,190,NET,J N E Security Ltd,50340C
Gloucester City Council,23UE,Safer Stronger Communities,FP841,Other Minor Supplies Services,5590,Safer Gloucester homepage works,17/11/2015,410708,225,NET,Icon.Net,52505Z
Gloucester City Council,23UE,Tic Trading,LT110,Publications For Sale,5064,goods for resale,17/11/2015,410561,906.31,NET,David Whyman Map Sales,02653Z
Gloucester City Council,23UE,Aspire Admin Charges,LC105,Security Services Fees,5351,Charges December 2015,18/11/2015,410601,181.28,NET,G4s Cash Solutions (Uk) Ltd,04290V
Gloucester City Council,23UE,Cemeteries,HC300,Clothing,5200,gloves,18/11/2015,410557,35,NET,Safpro Industrial Supply Co,39190W
Gloucester City Council,23UE,Cemeteries,HC300,Fertilisers,3029,tree works,18/11/2015,410634,2342,NET,Jpu Services Ltd,11056K
Gloucester City Council,23UE,Cemeteries,HC300,Routine R And M - Vehicles,4011,mini digger repairs,18/11/2015,410605,383.86,NET,T H White Ltd,08413P
Gloucester City Council,23UE,Cemeteries,HC300,Trade Refuse Tipping Fees,6297,dumper hire,18/11/2015,410512,475,NET,Allstone Sand & Gravel Aggregates Ltd,00940M
Gloucester City Council,23UE,Cems/Crems Admin,HC100,Security Services Fees,5351,Amendments to Contract,18/11/2015,410602,5.84,NET,G4s Cash Solutions (Uk) Ltd,04290V
Gloucester City Council,23UE,Cems/Crems Admin,HC100,Security Services Fees,5351,Charges December 2015,18/11/2015,410601,103.33,NET,G4s Cash Solutions (Uk) Ltd,04290V
Gloucester City Council,23UE,City Museum And Art Gallery,LM200,Security Services Fees,5351,Charges December 2015,18/11/2015,410601,90.64,NET,G4s Cash Solutions (Uk) Ltd,04290V
Gloucester City Council,23UE,City Museum Catering,LM202,Catering Provisions -Food,5110,food,18/11/2015,410641,93.69,NET,Woodward Foodservice,10714F
Gloucester City Council,23UE,City Museum Catering,LM202,Catering Provisions -Food,5110,food,18/11/2015,410642,93.44,NET,Woodward Foodservice,10714F
Gloucester City Council,23UE,City Museum Catering,LM202,Catering Provisions -Food,5110,Food,18/11/2015,410596,88.17,NET,Woodward Foodservice,10714F
Gloucester City Council,23UE,City Museum Catering,LM202,Catering Provisions -Food,5110,Food,18/11/2015,410606,124.66,NET,Woodward Foodservice,10714F
Gloucester City Council,23UE,Client Revs & Bens Contract,RT240,Bailiffs Fees,5368,VAT on fees collected,18/11/2015,410566,0,NET,Phoenix Commercial Collections Ltd,13435J
Gloucester City Council,23UE,Client Revs & Bens Contract,RT240,Bailiffs Fees,5368,VAT on fees collected,18/11/2015,410567,0,NET,Phoenix Commercial Collections Ltd,13435J
Gloucester City Council,23UE,Contact Centre,RB300,Postages,5400,acct 0074842000,18/11/2015,410701,179.49,NET,Royal Mail S.Wales & South West,35830S
Gloucester City Council,23UE,Contact Centre,RB300,Postages,5400,acct 0252446000 23/10 - 5/11/15,18/11/2015,410702,1097.2,NET,Royal Mail S.Wales & South West,35830S
Gloucester City Council,23UE,Corporate Reporting /Financing,RC504,Fees For Services Received,5350,Childcare Vouchers November 2015,18/11/2015,410558,31.14,NET,Wider Plan Ltd ( Formerly Kiddivouchers),07893B
Gloucester City Council,23UE,Countryside Unit,LP201,Operational Equipment <5000,5012,feed,18/11/2015,410576,93.96,NET,John E Haith Ltd,15864K
Gloucester City Council,23UE,Crematorium,HC200,Maint Of Grounds - General,3030,Heathers,18/11/2015,410674,416.41,NET,Genus Plant Sourcing,14143S
Gloucester City Council,23UE,Development Management,PT200,Microfilming / Cd-Rom Storage,5330,Archival storage,18/11/2015,410577,34.06,NET,Transmedia Technology Ltd,08635T
Gloucester City Council,23UE,Docks Complex - Catering Servs,RB110,Catering Provisions -Food,5110,food,18/11/2015,410553,118.8,NET,Janes Pantry,24500W
Gloucester City Council,23UE,Docks Complex - Catering Servs,RB110,Catering Provisions -Food,5110,food,18/11/2015,410798,54.83,NET,Bidvest Foodservice (3663),55585U
Gloucester City Council,23UE,Docks Complex - Catering Servs,RB110,Catering Provisions -Food,5110,food,18/11/2015,410799,543.61,NET,Bidvest Foodservice (3663),55585U
Gloucester City Council,23UE,Docks Complex - Catering Servs,RB110,Catering Provisions -Food,5110,food,18/11/2015,410800,423.11,NET,Bidvest Foodservice (3663),55585U
Gloucester City Council,23UE,Docks Complex - Catering Servs,RB110,Catering Provisions -Food,5110,food,18/11/2015,410802,65.92,NET,Total Produce Gloucester,12645E
Gloucester City Council,23UE,Docks Complex - Catering Servs,RB110,Catering Provisions -Food,5110,food,18/11/2015,410803,63.37,NET,Total Produce Gloucester,12645E
Gloucester City Council,23UE,Docks Complex - Catering Servs,RB110,Catering Provisions -Food,5110,food,18/11/2015,410804,8.64,NET,Total Produce Gloucester,12645E
Gloucester City Council,23UE,Docks Complex - Catering Servs,RB110,Catering Provisions -Food,5110,food,18/11/2015,410805,15.96,NET,Total Produce Gloucester,12645E
Gloucester City Council,23UE,Docks Complex - Catering Servs,RB110,Catering Provisions -Food,5110,food,18/11/2015,410807,8.15,NET,Janes Pantry,24500W
Gloucester City Council,23UE,Docks Complex - Catering Servs,RB110,Catering Provisions -Food,5110,food,18/11/2015,410808,7.52,NET,Janes Pantry,24500W
Gloucester City Council,23UE,Docks Complex - Catering Servs,RB110,Catering Provisions -Food,5110,food,18/11/2015,410809,12.02,NET,Janes Pantry,24500W
Gloucester City Council,23UE,Docks Complex - Catering Servs,RB110,Catering Provisions -Food,5110,food,18/11/2015,410810,13.05,NET,Janes Pantry,24500W
Gloucester City Council,23UE,Docks Complex - Catering Servs,RB110,Catering Provisions -Food,5110,food,18/11/2015,410811,15.76,NET,Janes Pantry,24500W
Gloucester City Council,23UE,Docks Complex - Catering Servs,RB110,Catering Provisions -Food,5110,food,18/11/2015,410812,7.6,NET,Janes Pantry,24500W
Gloucester City Council,23UE,Docks Complex - Catering Servs,RB110,Catering Provisions -Food,5110,food,18/11/2015,410813,7.49,NET,Janes Pantry,24500W
Gloucester City Council,23UE,Docks Complex - Catering Servs,RB110,Catering Provisions -Food,5110,food,18/11/2015,410814,11.93,NET,Janes Pantry,24500W
Gloucester City Council,23UE,Docks Complex - Catering Servs,RB110,Catering Provisions -Food,5110,food,18/11/2015,410815,6.07,NET,Janes Pantry,24500W
Gloucester City Council,23UE,Docks Complex - Catering Servs,RB110,Catering Provisions -Food,5110,food,18/11/2015,410816,21.51,NET,Janes Pantry,24500W
Gloucester City Council,23UE,Docks Complex - Catering Servs,RB110,Catering Provisions -Food,5110,food,18/11/2015,410817,11.96,NET,Janes Pantry,24500W
Gloucester City Council,23UE,Docks Complex - Catering Servs,RB110,Catering Provisions -Food,5110,food,18/11/2015,410818,12.92,NET,Janes Pantry,24500W
Gloucester City Council,23UE,Docks Complex - Catering Servs,RB110,Catering Provisions -Food,5110,food,18/11/2015,410819,21.24,NET,Janes Pantry,24500W
Gloucester City Council,23UE,Docks Complex - Catering Servs,RB110,Catering Provisions -Food,5110,food,18/11/2015,410820,14.66,NET,Janes Pantry,24500W
Gloucester City Council,23UE,Docks Complex - Catering Servs,RB110,Catering Provisions -Food,5110,food,18/11/2015,410821,13.43,NET,Janes Pantry,24500W
Gloucester City Council,23UE,Docks Complex - Catering Servs,RB110,Catering Provisions -Food,5110,food,18/11/2015,410822,10.86,NET,Janes Pantry,24500W
Gloucester City Council,23UE,Docks Complex - Catering Servs,RB110,Catering Provisions -Food,5110,food,18/11/2015,410823,6.07,NET,Janes Pantry,24500W
Gloucester City Council,23UE,Docks Complex - Catering Servs,RB110,Catering Provisions -Food,5110,food,18/11/2015,410824,22.32,NET,Janes Pantry,24500W
Gloucester City Council,23UE,Docks Complex - Catering Servs,RB110,Catering Provisions -Food,5110,food,18/11/2015,410825,13.64,NET,Janes Pantry,24500W
Gloucester City Council,23UE,Docks Complex - Catering Servs,RB110,Catering Provisions -Food,5110,food,18/11/2015,410826,11.22,NET,Janes Pantry,24500W
Gloucester City Council,23UE,Docks Complex - Catering Servs,RB110,Catering Provisions -Food,5110,food,18/11/2015,410827,13.05,NET,Janes Pantry,24500W
Gloucester City Council,23UE,Docks Complex - Catering Servs,RB110,Catering Provisions -Food,5110,food,18/11/2015,410828,9.74,NET,Janes Pantry,24500W
Gloucester City Council,23UE,Docks Complex - Catering Servs,RB110,Catering Provisions -Food,5110,food,18/11/2015,410829,76,NET,Total Produce Gloucester,12645E
Gloucester City Council,23UE,Docks Complex - Catering Servs,RB110,Catering Provisions -Food,5110,food,18/11/2015,410830,15.87,NET,Total Produce Gloucester,12645E
Gloucester City Council,23UE,Docks Complex - Catering Servs,RB110,Catering Provisions -Food,5110,food,18/11/2015,410831,8.64,NET,Total Produce Gloucester,12645E
Gloucester City Council,23UE,Docks Complex - Catering Servs,RB110,Catering Provisions -Food,5110,food,18/11/2015,410832,20.24,NET,Total Produce Gloucester,12645E
Gloucester City Council,23UE,Docks Complex - Catering Servs,RB110,Catering Provisions -Food,5110,food,18/11/2015,410833,48.48,NET,Total Produce Gloucester,12645E
Gloucester City Council,23UE,Docks Complex - Catering Servs,RB110,Catering Provisions -Food,5110,food,18/11/2015,410834,4.58,NET,Total Produce Gloucester,12645E
Gloucester City Council,23UE,Docks Complex - Catering Servs,RB110,Catering Provisions -Food,5110,food,18/11/2015,410835,16.68,NET,Total Produce Gloucester,12645E
Gloucester City Council,23UE,Docks Complex - Catering Servs,RB110,Catering Provisions -Food,5110,food,18/11/2015,410836,29.2,NET,Total Produce Gloucester,12645E
Gloucester City Council,23UE,Docks Complex - Catering Servs,RB110,Catering Provisions -Food,5110,food,18/11/2015,410837,25.75,NET,Total Produce Gloucester,12645E
Gloucester City Council,23UE,Docks Complex - Catering Servs,RB110,Catering Provisions -Food,5110,food,18/11/2015,410839,68.78,NET,Total Produce Gloucester,12645E
Gloucester City Council,23UE,Docks Complex - Catering Servs,RB110,Catering Provisions -Food,5110,food,18/11/2015,410840,8.84,NET,Total Produce Gloucester,12645E
Gloucester City Council,23UE,Docks Complex - Catering Servs,RB110,Catering Provisions -Food,5110,food,18/11/2015,410841,33.41,NET,Total Produce Gloucester,12645E
Gloucester City Council,23UE,Docks Complex - Catering Servs,RB110,Catering Provisions -Food,5110,food,18/11/2015,410842,43.34,NET,Total Produce Gloucester,12645E
Gloucester City Council,23UE,Docks Complex - Catering Servs,RB110,Catering Provisions -Food,5110,food,18/11/2015,410843,63.34,NET,Total Produce Gloucester,12645E
Gloucester City Council,23UE,Docks Complex - Catering Servs,RB110,Catering Provisions -Food,5110,fooder,18/11/2015,410838,15.84,NET,Total Produce Gloucester,12645E
Gloucester City Council,23UE,Docks Complex - Services,RB100,Security Services Fees,5351,Charges December 2015,18/11/2015,410601,270.81,NET,G4s Cash Solutions (Uk) Ltd,04290V
Gloucester City Council,23UE,Folk Museum,LM210,Security Services Fees,5351,Charges December 2015,18/11/2015,410601,90.64,NET,G4s Cash Solutions (Uk) Ltd,04290V
Gloucester City Council,23UE,Gloucester Guildhall,LA100,Security Services Fees,5351,Charges December 2015,18/11/2015,410601,90.64,NET,G4s Cash Solutions (Uk) Ltd,04290V
Gloucester City Council,23UE,REDACTED,REDACTED,REDACTED,REDACTED,REDACTED,18/11/2015,REDACTED,240,NET,REDACTED,REDACTED
Gloucester City Council,23UE,REDACTED,REDACTED,REDACTED,REDACTED,REDACTED,18/11/2015,REDACTED,75,NET,REDACTED,REDACTED
Gloucester City Council,23UE,REDACTED,REDACTED,REDACTED,REDACTED,REDACTED,18/11/2015,REDACTED,120,NET,REDACTED,REDACTED
Gloucester City Council,23UE,REDACTED,REDACTED,REDACTED,REDACTED,REDACTED,18/11/2015,REDACTED,400,NET,REDACTED,REDACTED
Gloucester City Council,23UE,Housing Strategy & Enabling,CH110,Conference/Meeting Expenses,5510,CIH SW event,18/11/2015,410562,230,NET,Chartered Institute Of Housing,24230C
Gloucester City Council,23UE,Investment Property,RB500,General Repair/Maint Buildings,3000,Eastgate Market,18/11/2015,410573,266.96,NET,Adt Fire & Security Plc,54086D
Gloucester City Council,23UE,Investment Property,RB500,General Repair/Maint Buildings,3000,Guildhall,18/11/2015,410581,79.9,NET,Adt Fire & Security Plc,54086D
Gloucester City Council,23UE,REDACTED,REDACTED,REDACTED,REDACTED,REDACTED,18/11/2015,REDACTED,400,NET,REDACTED,REDACTED
Gloucester City Council,23UE,Retail Market - Landlord,HM300,Trade Refuse Collection,3630,OCT15 food waste,18/11/2015,410570,150,NET,B & S Pointon Ltd,06253G
Gloucester City Council,23UE,Solace Project,FP843,Other Minor Supplies Services,5590,ASB salary AUG15,18/11/2015,408991,3250,NET,Gloucester City Homes,05244T
Gloucester City Council,23UE,Solace Project,FP843,Other Minor Supplies Services,5590,ASB salary JUL15,18/11/2015,408990,3250,NET,Gloucester City Homes,05244T
Gloucester City Council,23UE,Solace Project,FP843,Other Minor Supplies Services,5590,ASB salary SEP15,18/11/2015,408994,3250,NET,Gloucester City Homes,05244T
Gloucester City Council,23UE,The Arbor,HC501,Catering Provisions -Food,5110,food,18/11/2015,410519,85.72,NET,Janes Pantry,24500W
Gloucester City Council,23UE,The Arbor,HC501,Catering Provisions -Food,5110,food,18/11/2015,410861,23.54,NET,Total Produce Gloucester,12645E
Gloucester City Council,23UE,The Arbor,HC501,Catering Provisions -Food,5110,FOOD,18/11/2015,410121,121.28,NET,Janes Pantry,24500W
Gloucester City Council,23UE,The Arbor,HC501,Cleaning Materials,3600,2 sanitary disposal units at Arbor,18/11/2015,407722,34.56,NET,Minster Cleaning Services,02158R
Gloucester City Council,23UE,The Arbor,HC501,Cleaning Materials,3600,Arbor sanitary disposal units,18/11/2015,408944,34.56,NET,Minster Cleaning Services,02158R
Gloucester City Council,23UE,The Arbor,HC501,Cleaning Materials,3600,Nov-15,18/11/2015,410437,34.56,NET,Minster Cleaning Services,02158R
Gloucester City Council,23UE,The Arbor,HC501,Maint Agreements - Buildings,3010,Monthly Warranty,18/11/2015,410003,61.58,NET,Caffeica Ltd,11923J
Gloucester City Council,23UE,Tourism Marketing,LT100,Security Services Fees,5351,Charges December 2015,18/11/2015,410601,90.64,NET,G4s Cash Solutions (Uk) Ltd,04290V
Gloucester City Council,23UE,Allotments,HI104,Operational Equipment <5000,5012,skip hire Estcourt Close allotments,19/11/2015,407088,300,NET,Smiths (Gloucester) Ltd,40995Z
Gloucester City Council,23UE,City Museum Catering,LM202,Catering Provisions -Food,5110,milk,19/11/2015,410536,6.9,NET,Total Produce Gloucester,12645E
Gloucester City Council,23UE,City Museum Catering,LM202,Catering Provisions -Food,5110,milk,19/11/2015,410537,6.9,NET,Total Produce Gloucester,12645E
Gloucester City Council,23UE,City Museum Catering,LM202,Catering Provisions -Food,5110,milk,19/11/2015,410538,4.6,NET,Total Produce Gloucester,12645E
Gloucester City Council,23UE,City Museum Catering,LM202,Catering Provisions -Food,5110,milk,19/11/2015,410539,4.6,NET,Total Produce Gloucester,12645E
Gloucester City Council,23UE,City Museum Catering,LM202,Catering Provisions -Food,5110,milk,19/11/2015,410540,4.6,NET,Total Produce Gloucester,12645E
Gloucester City Council,23UE,City Museum Catering,LM202,Catering Provisions -Food,5110,milk,19/11/2015,410541,5.75,NET,Total Produce Gloucester,12645E
Gloucester City Council,23UE,City Museum Catering,LM202,Catering Provisions -Food,5110,milk,19/11/2015,410542,4.6,NET,Total Produce Gloucester,12645E
Gloucester City Council,23UE,City Museum Catering,LM202,Catering Provisions -Food,5110,milk,19/11/2015,410589,4.6,NET,Total Produce Gloucester,12645E
Gloucester City Council,23UE,City Museum Catering,LM202,Catering Provisions -Food,5110,milk,19/11/2015,410859,4.6,NET,Total Produce Gloucester,12645E
Gloucester City Council,23UE,City Museum Catering,LM202,Catering Provisions -Food,5110,milk,19/11/2015,410860,4.6,NET,Total Produce Gloucester,12645E
Gloucester City Council,23UE,City Museum Catering,LM202,Catering Provisions -Food,5110,milk,19/11/2015,410865,6.9,NET,Total Produce Gloucester,12645E
Gloucester City Council,23UE,City Museum Catering,LM202,Catering Provisions -Food,5110,milk,19/11/2015,410866,4.6,NET,Total Produce Gloucester,12645E
Gloucester City Council,23UE,City Museum Catering,LM202,Catering Provisions -Food,5110,milk,19/11/2015,410868,6.9,NET,Total Produce Gloucester,12645E
Gloucester City Council,23UE,City Museum Catering,LM202,Catering Provisions -Food,5110,milk,19/11/2015,410869,4.6,NET,Total Produce Gloucester,12645E
Gloucester City Council,23UE,City Museum Catering,LM202,Catering Provisions -Food,5110,milk,19/11/2015,410870,6.9,NET,Total Produce Gloucester,12645E
Gloucester City Council,23UE,City Museum Catering,LM202,Catering Provisions -Food,5110,milk,19/11/2015,410871,6.9,NET,Total Produce Gloucester,12645E
Gloucester City Council,23UE,City Museum Catering,LM202,Catering Provisions -Food,5110,Milk,19/11/2015,410590,6.9,NET,Total Produce Gloucester,12645E
Gloucester City Council,23UE,City Museum Catering,LM202,Catering Provisions -Food,5110,Milk,19/11/2015,410591,6.9,NET,Total Produce Gloucester,12645E
Gloucester City Council,23UE,City Museum Catering,LM202,Catering Provisions -Food,5110,Milk,19/11/2015,410592,6.9,NET,Total Produce Gloucester,12645E
Gloucester City Council,23UE,City Museum Catering,LM202,Catering Provisions -Food,5110,Milk,19/11/2015,410593,4.6,NET,Total Produce Gloucester,12645E
Gloucester City Council,23UE,City Museum Catering,LM202,Catering Provisions -Food,5110,Milk,19/11/2015,410594,4.6,NET,Total Produce Gloucester,12645E
Gloucester City Council,23UE,City Museum Catering,LM202,Catering Provisions -Food,5110,Milk,19/11/2015,410595,4.6,NET,Total Produce Gloucester,12645E
Gloucester City Council,23UE,Civil Parking Enforcement,PT741,Computer Software Maintenance,5427,Chipassist support NOV15-NOV16,19/11/2015,410488,3500,NET,Chipside Ltd,06535T
Gloucester City Council,23UE,Contact Centre,RB300,Postages,5400,envelopes,19/11/2015,410571,109,NET,Encore Envelopes Ltd,13782H
Gloucester City Council,23UE,Council Streetcare Team,HI101,General Repair/Maint Buildings,3000,signs,19/11/2015,410918,90,NET,Werxco Limited,04432Z
Gloucester City Council,23UE,Council Streetcare Team,HI101,Maint Of Grounds - General,3030,litter bin,19/11/2015,410598,285,NET,Enterprise (Aol) Ltd,06695G
Gloucester City Council,23UE,Development Management,PT200,Fees For Services Received,5350,Peel Centre planning appraisal,19/11/2015,410915,4628,NET,Carter Jonas Llp,16157K
Gloucester City Council,23UE,Docks Complex - Catering Servs,RB110,Catering Provisions -Food,5110,food,19/11/2015,410864,63.18,NET,Total Produce Gloucester,12645E
Gloucester City Council,23UE,Docks Complex - Catering Servs,RB110,Catering Provisions -Food,5110,food,19/11/2015,410867,4.6,NET,Total Produce Gloucester,12645E
Gloucester City Council,23UE,Economic Development,FP300,Business Grant,7116,broadband voucher,19/11/2015,410907,3000,NET,Eurolink Connect Limited,15772S
Gloucester City Council,23UE,Economic Development,FP300,Business Grant,7116,broadband voucher,19/11/2015,410911,2245,NET,Edge Networks (Uk) Ltd,15839J
Gloucester City Council,23UE,Economic Development,FP300,Business Grant,7116,broadband voucher,19/11/2015,410912,2245,NET,Edge Networks (Uk) Ltd,15839J
Gloucester City Council,23UE,Economic Development,FP300,Business Grant,7116,broadband voucher,19/11/2015,410913,2245,NET,Edge Networks (Uk) Ltd,15839J
Gloucester City Council,23UE,Economic Development,FP300,Business Grant,7116,broadband voucher,19/11/2015,410916,400,NET,2 Circles Communications,16168E
Gloucester City Council,23UE,REDACTED,REDACTED,REDACTED,REDACTED,REDACTED,19/11/2015,REDACTED,0,NET,REDACTED,REDACTED
Gloucester City Council,23UE,REDACTED,REDACTED,REDACTED,REDACTED,REDACTED,19/11/2015,REDACTED,1586.75,NET,REDACTED,REDACTED
Gloucester City Council,23UE,Guildhall Lettings,LA400,Fees For Services Received,5350,SET&OCT15 client sessions,19/11/2015,410928,120,NET,The Music Works,16187A
Gloucester City Council,23UE,Guildhall Lettings,LA400,Sale Of Goods And Services,9230,SET&OCT15 client sessions,19/11/2015,410928,-24,NET,The Music Works,16187A
Gloucester City Council,23UE,Investment Property,RB500,General Repair/Maint Buildings,3000,BLACKFRIARS,19/11/2015,410574,233,NET,Adt Fire & Security Plc,54086D
Gloucester City Council,23UE,Meet & Greet,FP309,Advertising And Publicity,5702,t shirt printing,19/11/2015,410578,13.33,NET,Hudson & Co,49730P
Gloucester City Council,23UE,Northwarehouse,RB150,Lift Maintenance,3051,North Warehouse,19/11/2015,410401,187.5,NET,Pickerings Europe Ltd,58816U
Gloucester City Council,23UE,Parks Contract Management,LP100,Maint Of Grounds - General,3030,ENTERPRISE AOL LTD,19/11/2015,410599,453.6,NET,Enterprise (Aol) Ltd,06695G
Gloucester City Council,23UE,Rehousing,CH111,Fees For Services Received,5350,Medical Report,19/11/2015,399777,97,NET,Bartongate Surgery,05680S
Gloucester City Council,23UE,Retail Market - Landlord,HM300,Window Cleaning,3610,NOV15 window cleaning - Eastgate Mkt,19/11/2015,410914,260,NET,Cornwall Cleaning Services,14050A
Gloucester City Council,23UE,The Arbor,HC501,Catering Provisions -Food,5110,food,19/11/2015,410846,16.22,NET,Total Produce Gloucester,12645E
Gloucester City Council,23UE,REDACTED,REDACTED,REDACTED,REDACTED,REDACTED,19/11/2015,REDACTED,2243,CAP,REDACTED,REDACTED
Gloucester City Council,23UE,Ugly Structures,GY010,Contract Payments,20,St Michael's Tower retention,19/11/2015,410917,1298.8,CAP,Carrek Limited,14860D
Gloucester City Council,23UE,Blackfriars,LA609,Hire Of Equipment,5020,Blackfriars christmas trees,20/11/2015,410922,245,NET,Coddington Christmas Trees,13746M
Gloucester City Council,23UE,Contact Centre,RB300,Basic Pay - Temporary Staff,2751,temporary staff w/e 15/11/15,20/11/2015,410909,720,NET,Morgan Hunt Uk Ltd,04451S
Gloucester City Council,23UE,Food Safety,HE100,Vocational Training,2970,L3 award in Education & Training AET,20/11/2015,410919,495,NET,Tutorcare Ltd,16183J
Gloucester City Council,23UE,Investment Property,RB500,General Repair/Maint Buildings,3000,BLACKFRIARS,20/11/2015,410575,79.9,NET,Adt Fire & Security Plc,54086D
Gloucester City Council,23UE,Rugby World Cup,LT450,Fees For Services Received,5350,RWC fanzone equipment hire,20/11/2015,410910,900,NET,Ermin Plant Hire & Services Ltd,14150V
Gloucester City Council,23UE,Allotments,HI104,Maint Of Grounds - General,3030,plant hire with operator,23/11/2015,410972,806.49,NET,Ken Pink Plant Hire Ltd,56884V
Gloucester City Council,23UE,Blackfriars,LA609,Fees For Services Received,5350,ref WSP Solicitors catering,23/11/2015,410971,76.5,NET,Catercater Ltd,08620G
Gloucester City Council,23UE,Business Transformation & Tech,RT700,Mobile Phones,5409,APR15 acct 78441964/1,23/11/2015,410648,19.17,NET,Everything Everywhere Ltd (T-Mobile),57543S
Gloucester City Council,23UE,Business Transformation & Tech,RT700,Mobile Phones,5409,AUG15 acct 78441964/1,23/11/2015,410646,18.22,NET,Everything Everywhere Ltd (T-Mobile),57543S
Gloucester City Council,23UE,Business Transformation & Tech,RT700,Mobile Phones,5409,Charges November 2015,23/11/2015,410597,59.73,NET,Everything Everywhere Ltd (T-Mobile),57543S
Gloucester City Council,23UE,Business Transformation & Tech,RT700,Mobile Phones,5409,DEC14 acct 78441964/1,23/11/2015,410652,20.88,NET,Everything Everywhere Ltd (T-Mobile),57543S
Gloucester City Council,23UE,Business Transformation & Tech,RT700,Mobile Phones,5409,OCTOBER 2015 charges,23/11/2015,410551,1269.14,NET,Everything Everywhere Ltd (T-Mobile),57543S
Gloucester City Council,23UE,Business Transformation & Tech,RT700,Mobile Phones,5409,FEB15 acct 78441964/1,23/11/2015,410645,18.17,NET,Everything Everywhere Ltd (T-Mobile),57543S
Gloucester City Council,23UE,Business Transformation & Tech,RT700,Mobile Phones,5409,JAN15 acct 78441964/1,23/11/2015,410650,17.71,NET,Everything Everywhere Ltd (T-Mobile),57543S
Gloucester City Council,23UE,Business Transformation & Tech,RT700,Mobile Phones,5409,JUL15 acct 78441964/1,23/11/2015,410647,17.12,NET,Everything Everywhere Ltd (T-Mobile),57543S
Gloucester City Council,23UE,Business Transformation & Tech,RT700,Mobile Phones,5409,JUN15 acct 78441964/1,23/11/2015,410651,18.99,NET,Everything Everywhere Ltd (T-Mobile),57543S
Gloucester City Council,23UE,Business Transformation & Tech,RT700,Mobile Phones,5409,MAR15 acct 78441964/1,23/11/2015,410644,19.28,NET,Everything Everywhere Ltd (T-Mobile),57543S
Gloucester City Council,23UE,Business Transformation & Tech,RT700,Mobile Phones,5409,MAY15 acct 78441964/1,23/11/2015,410655,20.11,NET,Everything Everywhere Ltd (T-Mobile),57543S
Gloucester City Council,23UE,Business Transformation & Tech,RT700,Mobile Phones,5409,NOV14 acct 78441964/1,23/11/2015,410654,27.66,NET,Everything Everywhere Ltd (T-Mobile),57543S
Gloucester City Council,23UE,Business Transformation & Tech,RT700,Mobile Phones,5409,NOV15 acct 78441964/1,23/11/2015,410649,18.36,NET,Everything Everywhere Ltd (T-Mobile),57543S
Gloucester City Council,23UE,Business Transformation & Tech,RT700,Mobile Phones,5409,OCT15 acct 78441964/1,23/11/2015,410653,18.64,NET,Everything Everywhere Ltd (T-Mobile),57543S
Gloucester City Council,23UE,Business Transformation & Tech,RT700,Mobile Phones,5409,Samsung S5 Neo,23/11/2015,410640,254,NET,Everything Everywhere Ltd (T-Mobile),02334V
Gloucester City Council,23UE,Business Transformation & Tech,RT700,Mobile Phones,5409,SEP15 acct 78441964/1,23/11/2015,410643,18.4,NET,Everything Everywhere Ltd (T-Mobile),57543S
Gloucester City Council,23UE,Celebratory Lights,LT302,Christmas Lights,5024,forklift & operator,23/11/2015,410523,84,NET,Ken Pink Plant Hire Ltd,56884V
Gloucester City Council,23UE,REDACTED,REDACTED,REDACTED,REDACTED,REDACTED,23/11/2015,REDACTED,3360,NET,REDACTED,REDACTED
Gloucester City Council,23UE,Cemeteries,HC300,Basic Pay - Temporary Staff,2751,TEMPORARY STAFF W/E 1/11/15,23/11/2015,410522,469.2,NET,Premiere Employment Group Ltd,55468Z
Gloucester City Council,23UE,Christmas Lights,GY006,Contract Payments,20,Christmas Arch,23/11/2015,410801,1600,CAP,J M Grail (General Engineering) Ltd,03204A
Gloucester City Council,23UE,Christmas Lights,GY006,Contract Payments,20,Christmas tree brackets,23/11/2015,410908,730,CAP,J M Grail (General Engineering) Ltd,03204A
Gloucester City Council,23UE,Civica Contract Revs & Bens,RT250,Contracted Services,6970,pension excess AUG15,23/11/2015,410381,414.53,NET,Civica Uk Ltd,10841X
Gloucester City Council,23UE,Civica Contract Revs & Bens,RT250,Contracted Services,6970,Pension excess reclaim SEP15,23/11/2015,410982,11088.92,NET,Civica Uk Ltd,10841X
Gloucester City Council,23UE,Civica Contract Revs & Bens,RT250,Contracted Services,6970,pension excess relaim AUG15,23/11/2015,410981,10827.54,NET,Civica Uk Ltd,10841X
Gloucester City Council,23UE,Civica Contract Revs & Bens,RT250,Contracted Services,6970,pension excess SEP15,23/11/2015,410383,414.53,NET,Civica Uk Ltd,10841X
Gloucester City Council,23UE,Civica It Contract,RT270,Contracted Services,6970,pension excess AUG15,23/11/2015,410382,349.1,NET,Civica Uk Ltd,10841X
Gloucester City Council,23UE,Civica It Contract,RT270,Contracted Services,6970,pension excess reclaim Aug15,23/11/2015,410980,414.53,NET,Civica Uk Ltd,10841X
Gloucester City Council,23UE,Civica It Contract,RT270,Contracted Services,6970,pension excess reclaim SEP15,23/11/2015,410983,414.53,NET,Civica Uk Ltd,10841X
Gloucester City Council,23UE,Civica It Contract,RT270,Contracted Services,6970,pension excess SEP15,23/11/2015,410384,342.05,NET,Civica Uk Ltd,10841X
Gloucester City Council,23UE,Client Revs & Bens Contract,RT240,Bailiffs Fees,5368,fees paid direct & VAT due on fees,23/11/2015,410960,66.82,NET,Bristow & Sutor,05450M
Gloucester City Council,23UE,Client Revs & Bens Contract,RT240,Bailiffs Fees,5368,VAT DUE ON FEES,23/11/2015,410961,0,NET,Bristow & Sutor,05450M
Gloucester City Council,23UE,Countryside Unit,LP201,General Repair/Maint Buildings,3000,SEP15-MAR16 service,23/11/2015,410745,69.46,NET,Ocs Group Uk Limited T/A Cannon,06506A
Gloucester City Council,23UE,Development Management,PT200,Fees For Services Received,5350,Provender Mill services,23/11/2015,410920,478,NET,O'Brien And Price Cheltenham Ltd,16166J
Gloucester City Council,23UE,Docks Complex - Services,RB100,Lift Maintenance,3051,hkp,23/11/2015,407031,75,NET,Pickerings Europe Ltd,58816U
Gloucester City Council,23UE,Green Garden Waste,HI105,Basic Pay - Temporary Staff,2751,temporary staff w/e 13/11/15,23/11/2015,410965,964.05,NET,One To One Recruitment,04752H
Gloucester City Council,23UE,Guildhall Events,LA200,Fees For Services Received,5350,Beer for Oktoberfest,23/11/2015,410973,510.95,NET,The Pelican Inn,16184G
Gloucester City Council,23UE,REDACTED,REDACTED,REDACTED,REDACTED,REDACTED,23/11/2015,REDACTED,350,NET,REDACTED,REDACTED
Gloucester City Council,23UE,Human Resources,EH100,Fees For Services Received,5350,Pensions Auto Enrolment charges,23/11/2015,410705,480,NET,Gloucestershire County Council,18650D
Gloucester City Council,23UE,Licences,HE510,Licensing Act,9303,REFUND WITHDRAWN APPLICATION FEES,23/11/2015,410979,600,NET,Clearhill Enterprises Ltd,16072V
Gloucester City Council,23UE,Northwarehouse,RB150,General Repair/Maint Buildings,3000,front door repairs N Warehouse,23/11/2015,410975,350,NET,Regus,13861L
Gloucester City Council,23UE,Retail Market - Landlord,HM300,Advertising And Publicity,5702,Market Trader advert 20/11/15,23/11/2015,410962,150,NET,The Worlds Fair Ltd,49321M
Gloucester City Council,23UE,REDACTED,REDACTED,REDACTED,REDACTED,REDACTED,23/11/2015,REDACTED,3288,NET,REDACTED,REDACTED
Gloucester City Council,23UE,REDACTED,REDACTED,REDACTED,REDACTED,REDACTED,23/11/2015,REDACTED,80,CAP,REDACTED,REDACTED
Gloucester City Council,23UE,Westgate Leisure Area S106,LY155,Contract Payments,20,westgate leisure area stage 4,23/11/2015,410977,2205,CAP,Peter Quinn Associates,12891L
Gloucester City Council,23UE,Westgate Leisure Area S106,LY155,Contract Payments,20,Westgate Leisure Area stage 5,23/11/2015,410976,2520,CAP,Peter Quinn Associates,12891L
Gloucester City Council,23UE,Business Transformation & Tech,RT700,Computer Hardware <5000,5420,Dell Lattitude E5550,24/11/2015,411117,486.45,NET,Dell Computers Corporation Ltd,55920C
Gloucester City Council,23UE,Business Transformation & Tech,RT700,Internet Service Provider Fees,5429,Charges Nov- Dec 2015,24/11/2015,410585,33,NET,Virgin Media Payments Ltd,09376J
Gloucester City Council,23UE,Business Transformation & Tech,RT700,Internet Service Provider Fees,5429,Charges October 2015,24/11/2015,410584,16.99,NET,Virgin Media Payments Ltd,09376J
Gloucester City Council,23UE,Business Transformation & Tech,RT700,Internet Service Provider Fees,5429,Cllr James NOV-DEC15,24/11/2015,410493,30,NET,Virgin Media Payments Ltd,09376J
Gloucester City Council,23UE,Cemeteries,HC300,Basic Pay - Cleaners,2401,John Deere repairs,24/11/2015,411097,90,NET,Garden Machinery Gloucester,55641K
Gloucester City Council,23UE,REDACTED,REDACTED,REDACTED,REDACTED,REDACTED,24/11/2015,REDACTED,200,NET,REDACTED,REDACTED
Gloucester City Council,23UE,Cemeteries,HC300,Routine R And M - Vehicles,4011,John Deere repairs,24/11/2015,411096,402.4,NET,Garden Machinery Gloucester,55641K
Gloucester City Council,23UE,Cemeteries,HC300,Routine R And M - Vehicles,4011,John Deere repairs,24/11/2015,411098,88.4,NET,Garden Machinery Gloucester,55641K
Gloucester City Council,23UE,Cemeteries,HC300,Tyres,4014,tyre repair,24/11/2015,411103,22,NET,A T S Euromaster Ltd,01860B
Gloucester City Council,23UE,City Centre Cctv System,PY275,Contract Payments,20,window labels,24/11/2015,411086,120,CAP,Alpha Colour Printers Ltd,00945B
Gloucester City Council,23UE,City Museum And Art Gallery,LM200,Publications For Sale,5064,Books,24/11/2015,404134,78,NET,The History Press Ltd,07144D
Gloucester City Council,23UE,Civica Admin Charges,RT105,Postages,5400,acct 0870585007,24/11/2015,410491,1033.24,NET,Royal Mail S.Wales & South West,35830S
Gloucester City Council,23UE,Contact Centre,RB300,Fees For Services Received,5350,Various Services,24/11/2015,410600,185.76,NET,Enterprise (Aol) Ltd,06695G
Gloucester City Council,23UE,Contact Centre,RB300,Stationery,5302,A4 paper,24/11/2015,411085,451,NET,Premier Paper Group Ltd,09166Y
Gloucester City Council,23UE,Council Streetcare Team,HI101,Signs / Nameplates,3039,Sapperton Road street nameplate,24/11/2015,411113,44.28,NET,Enterprise (Aol) Ltd,06695G
Gloucester City Council,23UE,Council Streetcare Team,HI101,Signs / Nameplates,3039,Various Services,24/11/2015,410600,335.23,NET,Enterprise (Aol) Ltd,06695G
Gloucester City Council,23UE,Countryside Unit,LP201,Contract Cleaning,3620,ranger centre cleaning,24/11/2015,411116,130,NET,Cv Fisher Cleaning Services,14907C
Gloucester City Council,23UE,Crematorium,HC200,Equipment For Sale,5050,black granite bench & lettering,24/11/2015,411102,1360,NET,F J Cambridge & Co Ltd,48841N
Gloucester City Council,23UE,Crematorium,HC200,Memorial Plaques,5053,bronze plaque,24/11/2015,411087,54,NET,Arkell & Hurcombe,59812T
Gloucester City Council,23UE,Crematorium,HC200,Memorial Plaques,5053,bronze plaques,24/11/2015,411088,423,NET,Arkell & Hurcombe,59812T
Gloucester City Council,23UE,Crematorium,HC200,Repair/Maint Of Fixed Plant,3006,12 monthly cremator service,24/11/2015,411089,7270.46,NET,Facultatieve Technologies Ltd,51210H
Gloucester City Council,23UE,REDACTED,REDACTED,REDACTED,REDACTED,REDACTED,24/11/2015,REDACTED,23,NET,REDACTED,REDACTED
Gloucester City Council,23UE,Disabled Facilities Grants,CY013,Disabled Facility Grants,74,Disabled Facilities Grant MDF5143,24/11/2015,411129,30000,CAP,Mears Home Improvement Ltd,00096G
Gloucester City Council,23UE,Disabled Facilities Grants,CY013,Disabled Facility Grants,74,Disabled Facilities Grant MDF5115,24/11/2015,411128,421.25,CAP,Mears Home Improvement Ltd,00096G
Gloucester City Council,23UE,REDACTED,REDACTED,REDACTED,REDACTED,REDACTED,24/11/2015,REDACTED,5505,CAP,REDACTED,REDACTED
Gloucester City Council,23UE,Docks Complex - Catering Servs,RB110,Catering Provisions -Food,5110,food & sundries,24/11/2015,411114,212.67,NET,Bidvest Foodservice (3663),55585U
Gloucester City Council,23UE,Dog Warden,HE400,Other Minor Supplies Services,5590,Stray Dogs OCT/NOV15,24/11/2015,411082,273,NET,Enterprise (Aol) Ltd,06695G
Gloucester City Council,23UE,Economic Development,FP300,Other Minor Supplies Services,5590,Worldhost training AUG15,24/11/2015,411094,7350,NET,Gloucestershire Enterprise Ltd,18643A
Gloucester City Council,23UE,REDACTED,REDACTED,REDACTED,REDACTED,REDACTED,24/11/2015,REDACTED,3802.73,NET,REDACTED,REDACTED
Gloucester City Council,23UE,Financial Services,RT200,Fees For Services Received,5350,VAT only invoice,24/11/2015,411077,0,NET,Weightmans Llp,15485E
Gloucester City Council,23UE,Folk Museum,LM210,Sewerage And Environ Charges,3402,Hygiene Unit,24/11/2015,408735,24.35,NET,Ocs Group Uk Limited T/A Cannon,06506A
Gloucester City Council,23UE,Gloucester Guildhall,LA100,Licences,5703,business radio licence,24/11/2015,410062,600,NET,Ofcom,02769C
Gloucester City Council,23UE,Gloucester Guildhall,LA100,Licences,5703,Business radio licence 2015/16,24/11/2015,411091,600,NET,Ofcom,02769C
Gloucester City Council,23UE,REDACTED,REDACTED,REDACTED,REDACTED,REDACTED,24/11/2015,REDACTED,1800,NET,REDACTED,REDACTED
Gloucester City Council,23UE,Guildhall Events,LA200,Fees For Services Received,5350,custom lanyards & cardholders,24/11/2015,411090,189,NET,Acoo Review Ltd,16188Y
Gloucester City Council,23UE,Guildhall Events,LA200,Fees For Services Received,5350,Guildhall DEC15/JAN16 distribution,24/11/2015,411095,382.5,NET,Glide Media,58829J
Gloucester City Council,23UE,REDACTED,REDACTED,REDACTED,REDACTED,REDACTED,24/11/2015,REDACTED,183,NET,REDACTED,REDACTED
Gloucester City Council,23UE,REDACTED,REDACTED,REDACTED,REDACTED,REDACTED,24/11/2015,REDACTED,489.44,NET,REDACTED,REDACTED
Gloucester City Council,23UE,Homelessness Prevention,CH122,Basic Pay - Temporary Staff,2751,temporary staff w/e 15/11/15,24/11/2015,411093,739.6,NET,Greenacre Recruitment Ltd,15817V
Gloucester City Council,23UE,Homelessness Prevention,CH122,Fees For Services Received,5350,Telephone interpreting,24/11/2015,410990,45.15,NET,Prime Production Ltd,06262F
Gloucester City Council,23UE,REDACTED,REDACTED,REDACTED,REDACTED,REDACTED,24/11/2015,REDACTED,530,NET,REDACTED,REDACTED
Gloucester City Council,23UE,Inhouse Training,EH200,Vocational Training,2970,Health & Wellbeing workshop,24/11/2015,411104,390,NET,Gloucestershire County Council,18650D
Gloucester City Council,23UE,Investment Property,RB500,Consultants Fees,5349,Helipebs premises works,24/11/2015,411099,750,NET,Alder King,02367D
Gloucester City Council,23UE,Investment Property,RB500,Contracts,3720,Bentink House JUL-SEP15 management fee,24/11/2015,411100,2166.27,NET,Alder King,02367D
Gloucester City Council,23UE,Investment Property,RB500,Contracts,3720,Grosvenor House JUL-SEP15 management fee,24/11/2015,411108,3214.34,NET,Alder King,02367D
Gloucester City Council,23UE,Investment Property,RB500,Contracts,3720,Kings House JUL-SEP15 management fee,24/11/2015,411101,2307.68,NET,Alder King,02367D
Gloucester City Council,23UE,Investment Property,RB500,Repair/Maint Of Fixed Plant,3006,PLANNED MAINTENANCE 5/11/15,24/11/2015,410524,283,NET,Mitchells (Gloucester) Ltd,30160U
Gloucester City Council,23UE,Rugby World Cup,LT450,Fees For Services Received,5350,LLANTHONY RD TENANCY SEP-NOV15,24/11/2015,410498,750,NET,Dtz,16012P
Gloucester City Council,23UE,The Arbor,HC501,Catering Provisions -Food,5110,Food,24/11/2015,411055,222.78,NET,Bidvest Foodservice (3663),55585U
Gloucester City Council,23UE,The Arbor,HC501,Catering Provisions -Food,5110,Food,24/11/2015,411058,26.27,NET,Total Produce Gloucester,12645E
Gloucester City Council,23UE,The Arbor,HC501,Catering Provisions -Food,5110,Food,24/11/2015,411059,13.82,NET,Total Produce Gloucester,12645E
Gloucester City Council,23UE,The Arbor,HC501,Catering Provisions -Food,5110,Food,24/11/2015,411060,79.81,NET,Total Produce Gloucester,12645E
Gloucester City Council,23UE,The Arbor,HC501,Catering Provisions -Food,5110,Food,24/11/2015,411061,29.12,NET,Total Produce Gloucester,12645E
Gloucester City Council,23UE,The Arbor,HC501,Catering Provisions -Food,5110,Food,24/11/2015,411062,54.14,NET,Total Produce Gloucester,12645E
Gloucester City Council,23UE,The Arbor,HC501,Catering Provisions -Food,5110,Food,24/11/2015,411063,9.92,NET,Total Produce Gloucester,12645E
Gloucester City Council,23UE,The Arbor,HC501,Catering Provisions -Food,5110,Food,24/11/2015,411067,188.86,NET,Bidvest Foodservice (3663),55585U
Gloucester City Council,23UE,The Arbor,HC501,Catering Provisions -Food,5110,Food,24/11/2015,411068,114.2,NET,Bidvest Foodservice (3663),55585U
Gloucester City Council,23UE,The Arbor,HC501,Catering Provisions -Food,5110,Food,24/11/2015,411074,130,NET,Bidvest Foodservice (3663),55585U
Gloucester City Council,23UE,The Arbor,HC501,Catering Provisions -Food,5110,Food,24/11/2015,411075,303.45,NET,Bidvest Foodservice (3663),55585U
Gloucester City Council,23UE,The Arbor,HC501,Catering Provisions -Food,5110,milk,24/11/2015,410963,9.53,NET,Total Produce Gloucester,12645E
Gloucester City Council,23UE,The Arbor,HC501,Catering Provisions -Liquor,5111,Drinks,24/11/2015,411065,231.88,NET,Cellar Supplies Cheltenham Ltd,01563L
Gloucester City Council,23UE,The Arbor,HC501,Other Minor Supplies Services,5590,Flowers,24/11/2015,411056,25.8,NET,Carols Florist,01274X
Gloucester City Council,23UE,The Arbor,HC501,Other Minor Supplies Services,5590,Flowers,24/11/2015,411057,25.8,NET,Carols Florist,01274X
Gloucester City Council,23UE,Training Schemes,ET100,Vocational Training,2970,NVQ assessments & training,24/11/2015,411105,1740,NET,The Gold Standard,56141C
Gloucester City Council,23UE,Utilities,PT502,Electricity Supply,3110,UNIT 8 GROSVENOR HOUSE,24/11/2015,411122,28.13,NET,Corona Energy,09034T
Gloucester City Council,23UE,Utilities,PT502,Electricity Supply,3110,UNIT 8 GROSVENOR HOUSE,24/11/2015,411124,27,NET,Corona Energy,09034T
Gloucester City Council,23UE,Utilities,PT502,Electricity Supply,3110,UTILITIES TO NOV 2015,24/11/2015,411123,34852.05,NET,West Mercia Energy,11669Z
Gloucester City Council,23UE,Vehicles,RS140,Fuel,4012,vehicle fuel,24/11/2015,410959,204.52,NET,Allstar Business Solutions Ltd (Arval),06594A
Gloucester City Council,23UE,REDACTED,REDACTED,REDACTED,REDACTED,REDACTED,24/11/2015,REDACTED,2000,NET,REDACTED,REDACTED
Gloucester City Council,23UE,REDACTED,REDACTED,REDACTED,REDACTED,REDACTED,25/11/2015,REDACTED,175,NET,REDACTED,REDACTED
Gloucester City Council,23UE,Business Transformation & Tech,RT700,Telephones And Fax,5410,Oct-15,25/11/2015,410440,3959.81,NET,Gamma Business Communications,10260A
Gloucester City Council,23UE,Business Transformation & Tech,RT700,Telephones And Fax,5410,Oct-15,25/11/2015,410451,2628.18,NET,Gamma Business Communications,10260A
Gloucester City Council,23UE,Cemeteries,HC300,Clothing,5200,fleece jackets,25/11/2015,410966,45,NET,Safpro Industrial Supply Co,39190W
Gloucester City Council,23UE,Contact Centre,RB300,Publications,5060,Papers,25/11/2015,411036,164,NET,Ymk Supermarket,55281U
Gloucester City Council,23UE,Contact Centre,RB300,Stationery,5302,PP80,25/11/2015,410996,43.62,NET,Stanford Marsh Ltd,51139M
Gloucester City Council,23UE,Contact Centre,RB300,Stationery,5302,Stationary,25/11/2015,411010,55.6,NET,Lyreco Uk Ltd,11746G
Gloucester City Council,23UE,Contact Centre,RB300,Stationery,5302,Stationary,25/11/2015,411011,45.24,NET,Lyreco Uk Ltd,11746G
Gloucester City Council,23UE,Contact Centre,RB300,Stationery,5302,Thermal Roll,25/11/2015,410995,135,NET,Paperloop Consumables Ltd,14594B
Gloucester City Council,23UE,Countryside Unit,LP201,Maint Of Grounds - General,3030,Various Items,25/11/2015,411045,20.21,NET,Garden Machinery Gloucester,55641K
Gloucester City Council,23UE,Countryside Unit,LP201,Oil,4013,chainsaw oil,25/11/2015,411003,38.4,NET,Hobbs Bros Ltd,05942J
Gloucester City Council,23UE,Development Management,PT200,Advertising And Publicity,5702,Advertisement 12/11/2015,25/11/2015,411002,321.38,NET,Local World Ltd,08556P
Gloucester City Council,23UE,Docks Complex - Services,RB100,Repair/Maint Of Fixed Plant,3006,Maintenance Equipment,25/11/2015,410603,578.46,NET,Gea Denco Ltd,57271C
Gloucester City Council,23UE,Dog Warden,HE400,Routine R And M - Vehicles,4011,Wiring Fault,25/11/2015,411037,45,NET,123 Car & Commercial,07651E
Gloucester City Council,23UE,Financial Services,RT200,Training Course Fees,5367,AAT Exam Fees - SDST,25/11/2015,411009,40,NET,Premier Training Centre Llp,15004Y
Gloucester City Council,23UE,Folk Museum,LM210,Advertising And Publicity,5702,City Museum SoGlos sponsorship 15/16,25/11/2015,411188,3587.5,NET,Soglos,07953J
Gloucester City Council,23UE,Guildhall Bar And Caf�,LA210,Catering Provisions -Food,5110,food,25/11/2015,410518,116.1,NET,Janes Pantry,24500W
Gloucester City Council,23UE,Guildhall Bar And Caf�,LA210,Catering Provisions -Food,5110,milk,25/11/2015,410862,4.6,NET,Total Produce Gloucester,12645E
Gloucester City Council,23UE,Guildhall Bar And Caf�,LA210,Catering Provisions -Food,5110,milk,25/11/2015,410863,4.6,NET,Total Produce Gloucester,12645E
Gloucester City Council,23UE,REDACTED,REDACTED,REDACTED,REDACTED,REDACTED,25/11/2015,REDACTED,105.88,NET,REDACTED,REDACTED
Gloucester City Council,23UE,REDACTED,REDACTED,REDACTED,REDACTED,REDACTED,25/11/2015,REDACTED,100,NET,REDACTED,REDACTED
Gloucester City Council,23UE,REDACTED,REDACTED,REDACTED,REDACTED,REDACTED,25/11/2015,REDACTED,280,NET,REDACTED,REDACTED
Gloucester City Council,23UE,REDACTED,REDACTED,REDACTED,REDACTED,REDACTED,25/11/2015,REDACTED,280,NET,REDACTED,REDACTED
Gloucester City Council,23UE,REDACTED,REDACTED,REDACTED,REDACTED,REDACTED,25/11/2015,REDACTED,110,NET,REDACTED,REDACTED
Gloucester City Council,23UE,REDACTED,REDACTED,REDACTED,REDACTED,REDACTED,25/11/2015,REDACTED,330,NET,REDACTED,REDACTED
Gloucester City Council,23UE,Homelessness,CH120,Publications,5060,Housing Law Casebook,25/11/2015,410993,68.5,NET,Marston Book Services,56453D
Gloucester City Council,23UE,Homelessness,CH120,Removal And Storage Fees,5513,Storage November 2015,25/11/2015,410994,180,NET,Advanced Removals & Storage Ltd,57142R
Gloucester City Council,23UE,Homelessness,CH120,Removal And Storage Fees,5513,Storage October 15,25/11/2015,411040,51.43,NET,Advanced Removals & Storage Ltd,57142R
Gloucester City Council,23UE,Homelessness,CH120,Removal And Storage Fees,5513,Storage October 15,25/11/2015,411041,234.64,NET,Advanced Removals & Storage Ltd,57142R
Gloucester City Council,23UE,Homelessness,CH120,Removal And Storage Fees,5513,Storage October 15,25/11/2015,411043,39.11,NET,Advanced Removals & Storage Ltd,57142R
Gloucester City Council,23UE,Homelessness,CH120,Removal And Storage Fees,5513,Storage October 15,25/11/2015,411039,78.21,NET,Advanced Removals & Storage Ltd,57142R
Gloucester City Council,23UE,Homelessness,CH120,Removal And Storage Fees,5513,Storage October 15,25/11/2015,410984,118.93,NET,Advanced Removals & Storage Ltd,57142R
Gloucester City Council,23UE,Homelessness,CH120,Removal And Storage Fees,5513,Storage October 15,25/11/2015,410985,277.71,NET,Advanced Removals & Storage Ltd,57142R
Gloucester City Council,23UE,Homelessness,CH120,Removal And Storage Fees,5513,Storage October 15,25/11/2015,410986,187.71,NET,Advanced Removals & Storage Ltd,57142R
Gloucester City Council,23UE,Homelessness,CH120,Removal And Storage Fees,5513,Storage October 15,25/11/2015,411042,39.11,NET,Advanced Removals & Storage Ltd,57142R
Gloucester City Council,23UE,REDACTED,REDACTED,REDACTED,REDACTED,REDACTED,25/11/2015,REDACTED,588.52,NET,REDACTED,REDACTED
Gloucester City Council,23UE,Kings Quarter,RY146,Contract Payments,20,Valuation Advice,25/11/2015,410997,4000,CAP,Bruton Knowles,57534T
Gloucester City Council,23UE,REDACTED,REDACTED,REDACTED,REDACTED,REDACTED,25/11/2015,REDACTED,640,NET,REDACTED,REDACTED
Gloucester City Council,23UE,Rehousing,CH111,Fees For Services Received,5350,Medical Report,25/11/2015,410987,20.5,NET,Dr R Watkins & Partners,59237H
Gloucester City Council,23UE,Rehousing,CH111,Fees For Services Received,5350,Medical Report,25/11/2015,410991,20.5,NET,Gloucester Health Access Centre,11611H
Gloucester City Council,23UE,Rehousing,CH111,Fees For Services Received,5350,Medical Report,25/11/2015,410992,20.5,NET,Hadwen Medical Practice,59727U
Gloucester City Council,23UE,Rehousing,CH111,Fees For Services Received,5350,Medical Report,25/11/2015,411044,20.5,NET,Dr R Watkins & Partners,59237H
Gloucester City Council,23UE,Rehousing,CH111,Fees For Services Received,5350,medical report,25/11/2015,411179,20.5,NET,Bartongate Surgery,05680S
Gloucester City Council,23UE,Retail Market - Landlord,HM300,Clothing,5200,Various Items,25/11/2015,410999,195.78,NET,Safpro Industrial Supply Co,39190W
Gloucester City Council,23UE,Retail Market - Landlord,HM300,Operational Equipment <5000,5012,Various Items,25/11/2015,410582,187.32,NET,Arp Trading Co,09956H
Gloucester City Council,23UE,Tourism Marketing,LT100,Uniforms,5201,Lapel Drs,25/11/2015,411046,69.98,NET,Simon Jersey Ltd,40555W
Gloucester City Council,23UE,Tourism Marketing,LT100,Uniforms,5201,Lapel Drs,25/11/2015,411047,34.99,NET,Simon Jersey Ltd,40555W
Gloucester City Council,23UE,Tourism Marketing,LT100,Uniforms,5201,Lapel Drs,25/11/2015,411048,34.99,NET,Simon Jersey Ltd,40555W
Gloucester City Council,23UE,Tourism Marketing,LT100,Uniforms,5201,Lapel Drs,25/11/2015,411181,34.99,NET,Simon Jersey Ltd,40555W
Gloucester City Council,23UE,Tourism Marketing,LT100,Uniforms,5201,Lapel Drs,25/11/2015,411182,34.99,NET,Simon Jersey Ltd,40555W
Gloucester City Council,23UE,Tourism Marketing,LT100,Window Cleaning,3610,Window Cleaning,25/11/2015,411049,12,NET,Interserve Fs (Uk) Limited,00442K
Gloucester City Council,23UE,Utilities,PT502,Electricity Supply,3110,UTILITIES TO NOV 2015,25/11/2015,411178,23.17,NET,West Mercia Energy,11669Z
Gloucester City Council,23UE,Utilities,PT502,Gas Supply,3100,UTILITIES TO NOV 2015,25/11/2015,411178,18660.98,NET,West Mercia Energy,11669Z
Gloucester City Council,23UE,Vehicles,RS140,Basic Pay - Cleaners,2401,Drivers Door Lock,25/11/2015,411038,92,NET,123 Car & Commercial,07651E
Gloucester City Council,23UE,Cemeteries,HC300,Tyres,4014,tyre repair J Deere,26/11/2015,411241,22,NET,A T S Euromaster Ltd,01860B
Gloucester City Council,23UE,City Museum Catering,LM202,Operational Equipment <5000,5012,JUN15 machine rental,26/11/2015,410486,135,NET,La Spaziale Uk Ltd,11823P
Gloucester City Council,23UE,City Museum Catering,LM202,Operational Equipment <5000,5012,NOV15 machine rental,26/11/2015,410487,135,NET,La Spaziale Uk Ltd,11823P
Gloucester City Council,23UE,City Museum Catering,LM202,Operational Equipment <5000,5012,OCT15 rental,26/11/2015,410485,135,NET,La Spaziale Uk Ltd,11823P
Gloucester City Council,23UE,City Museum Catering,LM202,Operational Equipment <5000,5012,SEP15 rental,26/11/2015,410520,135,NET,La Spaziale Uk Ltd,11823P
Gloucester City Council,23UE,Council Streetcare Team,HI101,General Repair/Maint Buildings,3000,kissing gate repair,26/11/2015,411237,184.6,NET,Greenfields Garden Services Ltd,48130G
Gloucester City Council,23UE,Crematorium,HC200,Cleaning Materials,3600,cleaning materials,26/11/2015,410179,203.14,NET,Acs Business Supplies Ltd,15791M
Gloucester City Council,23UE,Crematorium,HC200,Maint Of Grounds - General,3030,Palnts for Cem & Crem,26/11/2015,411232,416.41,NET,Genus Softworks Ltd,12320N
Gloucester City Council,23UE,Docks Complex - Services,RB100,Cleaning Materials,3600,cleaning materials,26/11/2015,410179,287.51,NET,Acs Business Supplies Ltd,15791M
Gloucester City Council,23UE,Economic Development,FP300,Business Grant,7116,broadband voucher Avalon Investments,26/11/2015,411249,3000,NET,Multidata Ltd,16185E
Gloucester City Council,23UE,Events,LT410,Fees For Services Received,5350,First Aid for Round Table fireworks 2015,26/11/2015,411084,716,NET,St John Ambulance,03597Y
Gloucester City Council,23UE,Financial Services,RT200,Fees For Services Received,5350,VAT on fees,26/11/2015,411227,0,NET,Phoenix Commercial Collections Ltd,13435J
Gloucester City Council,23UE,Financial Services,RT200,Fees For Services Received,5350,VAT on fees,26/11/2015,411228,0,NET,Phoenix Commercial Collections Ltd,13435J
Gloucester City Council,23UE,Gloucester Guildhall,LA100,Cleaning Materials,3600,Blueseal for waterless urinals,26/11/2015,411230,79,NET,Gentworks Ltd,10388W
Gloucester City Council,23UE,Gloucester Guildhall,LA100,Cleaning Materials,3600,cleaning materials,26/11/2015,410179,125.85,NET,Acs Business Supplies Ltd,15791M
Gloucester City Council,23UE,Gloucester Guildhall,LA100,Maintenance Of Equipment,5030,audio parts,26/11/2015,411244,66.62,NET,Cpc,52980M
Gloucester City Council,23UE,REDACTED,REDACTED,REDACTED,REDACTED,REDACTED,26/11/2015,REDACTED,300,NET,REDACTED,REDACTED
Gloucester City Council,23UE,REDACTED,REDACTED,REDACTED,REDACTED,REDACTED,26/11/2015,REDACTED,1100,NET,REDACTED,REDACTED
Gloucester City Council,23UE,REDACTED,REDACTED,REDACTED,REDACTED,REDACTED,26/11/2015,REDACTED,540,NET,REDACTED,REDACTED
Gloucester City Council,23UE,Investment Property,RB500,Consultants Fees,5349,Parton Road works,26/11/2015,409924,3700,NET,Gva Grimley,56359W
Gloucester City Council,23UE,Investment Property,RB500,General Repair/Maint Buildings,3000,Application October 2015,26/11/2015,411073,33127.67,NET,Rf Gardiner Limited,12299B
Gloucester City Council,23UE,Investment Property,RB500,General Repair/Maint Buildings,3000,Engineer 28/10/2015,26/11/2015,411053,46.88,NET,Pickerings Europe Ltd,58816U
Gloucester City Council,23UE,Kings Quarter,RY146,Contract Payments,20,New Bus Station Works,26/11/2015,411012,7826.76,CAP,Bt Openreach,06042Y
Gloucester City Council,23UE,Nms Contract,HI102,Contracted Services,6970,commodity top up April 2015,26/11/2015,404697,21943,NET,Enterprise (Aol) Ltd,06695G
Gloucester City Council,23UE,Nms Contract,HI102,Contracted Services,6970,commodity top up AUG15,26/11/2015,408898,22277,NET,Enterprise (Aol) Ltd,06695G
Gloucester City Council,23UE,Nms Contract,HI102,Contracted Services,6970,Commodity top-up June 2015,26/11/2015,406552,22277,NET,Enterprise (Aol) Ltd,06695G
Gloucester City Council,23UE,Nms Contract,HI102,Contracted Services,6970,JUL15 commodity top up,26/11/2015,407046,22277,NET,Enterprise (Aol) Ltd,06695G
Gloucester City Council,23UE,Nms Contract,HI102,Contracted Services,6970,MAY15 commodity topping up,26/11/2015,404855,22277,NET,Enterprise (Aol) Ltd,06695G
Gloucester City Council,23UE,Nms Contract,HI102,Contracted Services,6970,OCT15 commodity top up,26/11/2015,410168,22277,NET,Enterprise (Aol) Ltd,06695G
Gloucester City Council,23UE,Nms Contract,HI102,Contracted Services,6970,TOP UP SEPT 2015,26/11/2015,408687,22277,NET,Enterprise (Aol) Ltd,06695G
Gloucester City Council,23UE,Retail Market - Landlord,HM300,Cleaning Materials,3600,cleaning materials,26/11/2015,410179,230.97,NET,Acs Business Supplies Ltd,15791M
Gloucester City Council,23UE,Shopmobility,PE200,Maintenance Of Equipment,5030,various repairs,26/11/2015,410580,253,NET,Disabled Care & Mobility,12675V
Gloucester City Council,23UE,The Arbor,HC501,Catering Provisions -Food,5110,Food,26/11/2015,411066,216.47,NET,Bidvest Foodservice (3663),55585U
Gloucester City Council,23UE,The Arbor,HC501,Cleaning Materials,3600,cleaning materials,26/11/2015,410179,147.65,NET,Acs Business Supplies Ltd,15791M
Gloucester City Council,23UE,Tourism Marketing,LT100,Cleaning Materials,3600,cleaning materials,26/11/2015,410179,40.37,NET,Acs Business Supplies Ltd,15791M
Gloucester City Council,23UE,Allotments,HI104,Fees For Services Received,5350,refund for grass seed,27/11/2015,411279,39.9,NET,Saintbridge Allotments & Gardens Association,09542S
Gloucester City Council,23UE,REDACTED,REDACTED,REDACTED,REDACTED,REDACTED,27/11/2015,REDACTED,126.09,NET,REDACTED,REDACTED
Gloucester City Council,23UE,Christmas Lights,GY006,Contract Payments,20,TREE,27/11/2015,408675,159,CAP,Blachere Illuminations Uk Ltd,15818T
Gloucester City Council,23UE,Development Management,PT200,Basic Pay - Temporary Staff,2751,temporary staff w/e 15/11/15,27/11/2015,410967,1206.8,NET,The Oyster Partnership Limited,14900T
Gloucester City Council,23UE,Development Management,PT200,Basic Pay - Temporary Staff,2751,Temporary staff w/e 8/11/15,27/11/2015,410636,1199.2,NET,The Oyster Partnership Limited,14900T
Gloucester City Council,23UE,Disabled Facilities Grants,CY013,Disabled Facility Grants,74,MDF 5120 FINAL FEE,27/11/2015,411275,4135.8,CAP,Mears Home Improvement Ltd,00096G
Gloucester City Council,23UE,Disabled Facilities Grants,CY013,Disabled Facility Grants,74,MDF 5137 interim fee,27/11/2015,411274,4739.19,CAP,Mears Home Improvement Ltd,00096G
Gloucester City Council,23UE,REDACTED,REDACTED,REDACTED,REDACTED,REDACTED,27/11/2015,REDACTED,2034.7,CAP,REDACTED,REDACTED
Gloucester City Council,23UE,REDACTED,REDACTED,REDACTED,REDACTED,REDACTED,27/11/2015,REDACTED,77,NET,REDACTED,REDACTED
Gloucester City Council,23UE,REDACTED,REDACTED,REDACTED,REDACTED,REDACTED,27/11/2015,REDACTED,368.2,NET,REDACTED,REDACTED
Gloucester City Council,23UE,REDACTED,REDACTED,REDACTED,REDACTED,REDACTED,27/11/2015,REDACTED,272.72,NET,REDACTED,REDACTED
Gloucester City Council,23UE,REDACTED,REDACTED,REDACTED,REDACTED,REDACTED,27/11/2015,REDACTED,400,NET,REDACTED,REDACTED
Gloucester City Council,23UE,REDACTED,REDACTED,REDACTED,REDACTED,REDACTED,27/11/2015,REDACTED,350,NET,REDACTED,REDACTED
Gloucester City Council,23UE,Investment Property,RB500,General Repair/Maint Buildings,3000,Fleece Hotel consultancy,27/11/2015,411226,325,NET,Peter Goodhind Associates Ltd,18890E
Gloucester City Council,23UE,REDACTED,REDACTED,REDACTED,REDACTED,REDACTED,27/11/2015,REDACTED,37,NET,REDACTED,REDACTED
Gloucester City Council,23UE,Safer Stronger Communities,FP841,Other Minor Supplies Services,5590,Erasers,27/11/2015,411008,300,NET,Icontact Advertising,05548T
Gloucester City Council,23UE,Business Transformation & Tech,RT700,Computer Software <5000,5425,Autocad Architecture 2016,30/11/2015,411310,1428,NET,Excitech Ltd,09105V
Gloucester City Council,23UE,Cemeteries,HC300,Operational Materials,5070,chainsaw boots & cutting wedge,30/11/2015,411333,23.97,NET,Spaldings,48759Y
Gloucester City Council,23UE,Cemeteries,HC300,Routine R And M - Vehicles,4011,bulldog premier square head punner,30/11/2015,411332,59.7,NET,Spaldings,48759Y
Gloucester City Council,23UE,Contact Centre,RB300,Basic Pay - Temporary Staff,2751,temporary staff w/e 22/11/15,30/11/2015,411307,720,NET,Morgan Hunt Uk Ltd,04451S
Gloucester City Council,23UE,Contact Centre,RB300,Other Minor Supplies Services,5590,DEC15 out of hours service,30/11/2015,411347,237.57,NET,Office Response,09439K
Gloucester City Council,23UE,Countryside Unit,LP201,General Repair/Maint Buildings,3000,garden waste bags,30/11/2015,411246,150,NET,J & Hm Dickson Ltd,04119G
Gloucester City Council,23UE,Countryside Unit,LP201,Major R And M - Vehicles,4010,pump for plant watering bowser,30/11/2015,411243,890,NET,Bowser Supply Ltd,09578U
Gloucester City Council,23UE,Crematorium,HC200,Fees For Services Received,5350,NOVEMBER 2015 DOCTORS FEES,30/11/2015,411296,496.88,NET,Dr R W Bell,01571P
Gloucester City Council,23UE,Crematorium,HC200,Fees For Services Received,5350,NOVEMBER 2015 DOCTORS FEES,30/11/2015,411297,1152.4,NET,Dr D Martin,00890P
Gloucester City Council,23UE,Crematorium,HC200,Fees For Services Received,5350,NOVEMBER 2015 DOCTORS FEES,30/11/2015,411298,1182.96,NET,Dr C M Stretton,00306P
Gloucester City Council,23UE,Crematorium,HC200,Memorial Plaques,5053,bronze plaques,30/11/2015,411324,306,NET,Arkell & Hurcombe,59812T
Gloucester City Council,23UE,Crematorium,HC200,Uniforms,5201,chainsaw boots & cutting wedge,30/11/2015,411333,175,NET,Spaldings,48759Y
Gloucester City Council,23UE,Development Management,PT200,Fees For Services Received,5350,2015/16 membership of website,30/11/2015,411314,200,NET,Planning Jungle Limited,15068V
Gloucester City Council,23UE,Green Garden Waste,HI105,Basic Pay - Temporary Staff,2751,Temporary staff w/e 20/11/15,30/11/2015,411308,534.75,NET,One To One Recruitment,04752H
Gloucester City Council,23UE,Guildhall Bar And Caf�,LA210,Catering Provisions -Food,5110,food,30/11/2015,411313,90.59,NET,Woodward Foodservice,10714F
Gloucester City Council,23UE,Guildhall Bar And Caf�,LA210,Catering Provisions -Food,5110,food,30/11/2015,411302,241.25,NET,Woodward Foodservice,10714F
Gloucester City Council,23UE,Guildhall Bar And Caf�,LA210,Catering Provisions -Food,5110,food,30/11/2015,411312,104.85,NET,Woodward Foodservice,10714F
Gloucester City Council,23UE,Guildhall Bar And Caf�,LA210,Catering Provisions -Food,5110,ice cream for resale,30/11/2015,411321,72,NET,Winstones Ice Cream Ltd,56347D
Gloucester City Council,23UE,Guildhall Bar And Caf�,LA210,Catering Provisions -Food,5110,milk,30/11/2015,411316,4.6,NET,Total Produce Gloucester,12645E
Gloucester City Council,23UE,Guildhall Bar And Caf�,LA210,Catering Provisions -Food,5110,milk,30/11/2015,411317,4.6,NET,Total Produce Gloucester,12645E
Gloucester City Council,23UE,Guildhall Bar And Caf�,LA210,Catering Provisions -Food,5110,milk,30/11/2015,411318,4.6,NET,Total Produce Gloucester,12645E
Gloucester City Council,23UE,Guildhall Bar And Caf�,LA210,Catering Provisions -Food,5110,milk,30/11/2015,411334,4.6,NET,Total Produce Gloucester,12645E
Gloucester City Council,23UE,Guildhall Bar And Caf�,LA210,Catering Provisions -Food,5110,milk,30/11/2015,411335,4.6,NET,Total Produce Gloucester,12645E
Gloucester City Council,23UE,Guildhall Bar And Caf�,LA210,Catering Provisions -Food,5110,milk,30/11/2015,411336,4.6,NET,Total Produce Gloucester,12645E
Gloucester City Council,23UE,Guildhall Bar And Caf�,LA210,Catering Provisions -Food,5110,milk,30/11/2015,411337,4.6,NET,Total Produce Gloucester,12645E
Gloucester City Council,23UE,Guildhall Bar And Caf�,LA210,Catering Provisions -Food,5110,milk,30/11/2015,411338,4.6,NET,Total Produce Gloucester,12645E
Gloucester City Council,23UE,Guildhall Bar And Caf�,LA210,Catering Provisions -Food,5110,milk,30/11/2015,411339,4.6,NET,Total Produce Gloucester,12645E
Gloucester City Council,23UE,Guildhall Bar And Caf�,LA210,Catering Provisions -Food,5110,milk,30/11/2015,411340,4.6,NET,Total Produce Gloucester,12645E
Gloucester City Council,23UE,Guildhall Bar And Caf�,LA210,Catering Provisions -Food,5110,milk,30/11/2015,411341,4.6,NET,Total Produce Gloucester,12645E
Gloucester City Council,23UE,Guildhall Bar And Caf�,LA210,Catering Provisions -Food,5110,milk,30/11/2015,411342,4.6,NET,Total Produce Gloucester,12645E
Gloucester City Council,23UE,Guildhall Bar And Caf�,LA210,Catering Provisions -Liquor,5111,drinks,30/11/2015,411322,534.37,NET,Cellar Supplies Cheltenham Ltd,01563L
Gloucester City Council,23UE,Guildhall Bar And Caf�,LA210,Catering Provisions -Liquor,5111,drinks,30/11/2015,411323,700.91,NET,Cellar Supplies Cheltenham Ltd,01563L
Gloucester City Council,23UE,Guildhall Bar And Caf�,LA210,Catering Provisions -Liquor,5111,drinks,30/11/2015,411326,1005.66,NET,Cellar Supplies Cheltenham Ltd,01563L
Gloucester City Council,23UE,Guildhall Bar And Caf�,LA210,Catering Provisions -Liquor,5111,fruit juices for resale,30/11/2015,411325,48.72,NET,Bensons Fruit Juice Ltd,16170U
Gloucester City Council,23UE,Guildhall Bar And Caf�,LA210,Hire Of Equipment,5020,OCT15 stockcheck,30/11/2015,411315,90,NET,Fea Audits,08888J
Gloucester City Council,23UE,REDACTED,REDACTED,REDACTED,REDACTED,REDACTED,30/11/2015,REDACTED,1000,NET,REDACTED,REDACTED
Gloucester City Council,23UE,REDACTED,REDACTED,REDACTED,REDACTED,REDACTED,30/11/2015,REDACTED,489.44,NET,REDACTED,REDACTED
Gloucester City Council,23UE,Investment Property,RB500,Asbestos Management Plan,3003,Bus Station technical services,30/11/2015,411234,160,NET,Mss Group,14469F
Gloucester City Council,23UE,Investment Property,RB500,Fire Smoke Detection System,3059,Eastgate Market works,30/11/2015,411320,6849.96,NET,Airvent Systems Limited,51073T
Gloucester City Council,23UE,Kings Sq Paving Emerg Works,RY161,Legal/Survey Fees -Land,2,Clarence St Lights - trace feed,30/11/2015,411304,70,CAP,Scs Installations Ltd,10383G
Gloucester City Council,23UE,REDACTED,REDACTED,REDACTED,REDACTED,REDACTED,30/11/2015,REDACTED,1000,NET,REDACTED,REDACTED
Gloucester City Council,23UE,Rehousing,CH111,Fees For Services Received,5350,medical report,30/11/2015,411311,20.5,NET,Dr J C Mccrum & Partners,11052H
Gloucester City Council,23UE,Tic Theatre Ticket Sales,LT107,Materials For Sale,5080,THE THRILL OF LOVE TICKET SALES,30/11/2015,411294,241,NET,Kings Theatre,54213X
Gloucester City Council,23UE,Tic Theatre Ticket Sales,LT107,Sale Of Goods And Services,9230,THE THRILL OF LOVE TICKET SALES,30/11/2015,411294,-20.08,NET,Kings Theatre,54213X
Gloucester City Council,23UE,Tic Trading,LT110,Materials For Sale,5080,goods for resale,30/11/2015,411330,284.17,NET,Norfolk China Ltd,12863S
Gloucester City Council,23UE,REDACTED,REDACTED,REDACTED,REDACTED,REDACTED,,REDACTED,175,NET,REDACTED,REDACTED
Gloucester City Council,23UE,Cctv Revenue Budget,FP501,Overtime -Building Maint Staff,1303,operative & mewp,,411242,400,NET,Southern Electric Contracting Ltd*,55742C
Gloucester City Council,23UE,Cctv Revenue Budget,FP501,Security Equipment Serv/Repair,3038,operative & mewp,,411242,100,NET,Southern Electric Contracting Ltd*,55742C
Gloucester City Council,23UE,Celebratory Lights,LT302,Christmas Lights,5024,25' Christmas tree,,410712,1270,NET,Real Christmas Trees Ltd,11015G
Gloucester City Council,23UE,Celebratory Lights,LT302,Christmas Lights,5024,30' Christmas Trees,,410711,2400,NET,Real Christmas Trees Ltd,11015G
Gloucester City Council,23UE,Cemeteries,HC300,Operational Materials,5070,waterproof overtrousers,,411331,18.44,NET,Safpro Industrial Supply Co,39190W
Gloucester City Council,23UE,Civica Admin Charges,RT105,Postages,5400,Post 02/11 - 13/11 2015,,411054,1352.87,NET,Royal Mail S.Wales & South West,35830S
Gloucester City Council,23UE,Contact Centre,RB300,Postages,5400,acct 0074842000 NOV15,,411349,402.69,NET,Royal Mail S.Wales & South West,35830S
Gloucester City Council,23UE,Council Streetcare Team,HI101,Maint Of Grounds - General,3030,Estcourt road bench works,,411328,357,NET,Greenfields Garden Services Ltd,48130G
Gloucester City Council,23UE,Countryside Unit,LP201,Clothing,5200,TO CLEAR REFUNDED CREDIT NOTE 41,,411293,123.76,NET,Severnside Safety Supplies Ltd,57132O
Gloucester City Council,23UE,Countryside Unit,LP201,General Repair/Maint Buildings,3000,Ranger centre,,411224,69.44,NET,Ocs Group Uk Limited T/A Cannon,06506A
Gloucester City Council,23UE,Docks Complex - Services,RB100,Lift Maintenance,3051,Litt service The Docks DEC15-FEB16,,411110,373.75,NET,Pickerings Europe Ltd,58816U
Gloucester City Council,23UE,Financial Services,RT200,Fees For Services Received,5350,invoiced in error,,411223,224.45,NET,Parkeon Ltd,03238G
Gloucester City Council,23UE,REDACTED,REDACTED,REDACTED,REDACTED,REDACTED,,REDACTED,3000,NET,REDACTED,REDACTED
Gloucester City Council,23UE,REDACTED,REDACTED,REDACTED,REDACTED,REDACTED,,REDACTED,180,NET,REDACTED,REDACTED
Gloucester City Council,23UE,Homelessness Prevention,CH122,Basic Pay - Temporary Staff,2751,temporary staff w/e 22/11/15,,411383,740.68,NET,Greenacre Recruitment Ltd,15817V
Gloucester City Council,23UE,Housing Strategy & Enabling,CH110,Fees For Services Received,5350,ADVERT,,407838,564,NET,Ocean Media Group Ltd,05628U
Gloucester City Council,23UE,Investment Property,RB500,Lift Maintenance,3051,City Museum lift service,,411078,121.25,NET,Pickerings Europe Ltd,58816U
Gloucester City Council,23UE,Investment Property,RB500,Lift Maintenance,3051,FOLK MUSEUM DEC15-FEB16 SERVICE,,411126,106.25,NET,Pickerings Europe Ltd,58816U
Gloucester City Council,23UE,Investment Property,RB500,Lift Maintenance,3051,lift service DEC15-FEB16 various sites,,411111,481.75,NET,Pickerings Europe Ltd,58816U
Gloucester City Council,23UE,Investment Property,RB500,Lift Maintenance,3051,Lift service Eastgate Marked DEC15-FEB16,,411112,242.5,NET,Pickerings Europe Ltd,58816U
Gloucester City Council,23UE,Investment Property,RB500,Lift Maintenance,3051,Lift service GL1 DEC15-FEB16,,411109,242.5,NET,Pickerings Europe Ltd,58816U
Gloucester City Council,23UE,Meet & Greet,FP309,Advertising And Publicity,5702,NOV15 Shopping Destinations advert,,411327,200,NET,Diversified Business Communications Uk Ltd,15016R
Gloucester City Council,23UE,REDACTED,REDACTED,REDACTED,REDACTED,REDACTED,,REDACTED,9.25,NET,REDACTED,REDACTED
Gloucester City Council,23UE,Statutory Testing,RS310,Legionella,3018,Deadleg removal,,411083,510,NET,Kingfisher Environmental Services Ltd,04738V
Gloucester City Council,23UE,Vehicles,RS140,Fuel,4012,vehicle fuel,,411345,166.87,NET,Allstar Business Solutions Ltd (Arval),06594A
,,,,,,,,Sum:,1779903.14,,,
